Cogmind - Beta 11.1 @@@ ROGUE MODE // 2022.05.23 @ 18:29:28 // Winter2019/RPGLIKE Player: Boris Result: Destroyed by H-88 Terminator with KE Penetrator Performance ------------- Evolutions (9) 4500 Regions Visited (40) 8000 Robots Destroyed (1300) 6500 Value Destroyed (70563) 70563 Prototype IDs (149) 2980 Alien Tech Used (13) 2600 Bonus (60574) 60574 TOTAL SCORE: 155717 Bonus ------- Triggered High Security 1500 Triggered Max Security 2000 High Alert Combat Kills 42743 Follower Combat Kills 9623 Entered Garrisons 800 Used RIF Installer 2000 Network Hubs Disabled 600 Aligned with FarCom 300 Triggered Deep Caves Wall 500 Exposed GOLEM Chamber 500 Built Enhanced Grunts 300 A7 Reached Mainframe 300 Met R17 at Cetus 500 Used Core Reset Matrix 3000 Scanned by Researcher 1000 Pursued by Intercept 1000 Met Sigix 2000 Activated Exoskeleton 3000 Friendly Fire -11092 Cogmind --------- Core Integrity 0/1600 Matter 6/625 Energy 182/2300 System Corruption 4% Temperature Warm (104) Movement Walking (170) Ox1 Location -1/Access Parts ------- > --- POWER (3) -------- Improved Quantum Reactor Vortex Chain Reactor > --- PROPULSION (4) --- Assembled Alloy Leg Myomer Exoskeleton > --- UTILITY (13) ----- Coolant Network Assembled Biocell Array Experimental Targeting Computer Experimental Target Analyzer Experimental Core Analyzer Advanced Particle Charger Advanced Weapon Cycler Experimental Phase Shifter SHELL Armor AEGIS Remote Shield > --- WEAPON (5) ------- Heavy Quantum Rifle Sigix Sheargun Sigix Sheargun Sigix Sheargun Sigix Sheargun > --- INVENTORY (10) --- Protomatter-74 EMDS Potential Cannon Ragnarok Missile Launcher Sigix Broadsword CR-A16's Behemoth Slayer Peak State ------------ > --- POWER ------------ Improved Quantum Reactor Vortex Chain Reactor > --- PROPULSION ------- Assembled Alloy Leg Myomer Exoskeleton > --- UTILITY ---------- Coolant Network Assembled Biocell Array Surveybot 24 Chip Experimental Targeting Computer Experimental Target Analyzer Experimental Core Analyzer Advanced Particle Charger Experimental Phase Shifter SHELL Armor AEGIS Remote Shield > --- WEAPON ----------- Heavy Quantum Rifle Sigix Sheargun Sigix Sheargun Sigix Broadsword > --- INVENTORY -------- Experimental Sensor Array Advanced Weapon Cycler Subatomic Replicator Sigix Sheargun EMDS Potential Cannon Ragnarok Missile Launcher CR-A16's Behemoth Slayer [Rating: 267] Favorites ----------- Power Antimatter Reactor Engine Ion Engine Power Core Reinforced Fission Core Reactor Antimatter Reactor Propulsion Assembled Alloy Leg Treads Armored Heavy Treads Leg Assembled Alloy Leg Hover Unit Zionite Glidesys I Utility Experimental Targeting Computer Device Experimental Sensor Array Storage Assembled Biocell Array Processor Experimental Targeting Computer Hackware Relay Coupler [NC] Protection Assembled Alloy Armor Artifact Microwarp Drive Weapon 8R-AWN's Boregun Energy Gun Sigix Sheargun Energy Cannon Assembled Focal Cannon Ballistic Gun 8R-AWN's Boregun Ballistic Cannon Heavy Assault Cannon Launcher Smartbomb Launcher Special Weapon Remote Datajack Impact Weapon Heavy Hammer Slashing Weapon Sigix Broadsword Piercing Weapon CR-A16's Behemoth Slayer Special Melee Weapon Improved Datajack Build | -11 -10 -10 -9 -9 -9 -8 -8 -8 -8 -7 -7 -7 -7 -7 -7 -7 -6 -6 -6 -6 -6 -6 -6 -6 -5 -5 -5 -5 -5 -5 -4 -4 -4 -4 -3 -3 -3 -2 -2 -1 ------- Run | Scr Mat Min Mat Min Exi Min Mat Gar Mat Fac Was Fac Low Low Zio Dee Pro Fac Was Fac Ext Cet Arc Hub Fac Was Fac Gar Fac Gar Fac Was Fac Gar Res Qua Sec Res Tes Acc Slots Evolved 21 | 3 1 1 3 . . 1 1 1 . 1 . . . . . 1 . 1 . . 1 . . . . . . . . . 1 . . . 1 1 2 1 . . Power 2 | . . . 1 . . . . . . . . . . . . . . . . . . . . . . . . . . . . . . . . 1 . . . . Propulsion 3 | 1 . . 1 . . . . . . . . . . . . 1 . . . . . . . . . . . . . . . . . . . . . . . . Utility 12 | 1 . 1 . . . 1 1 1 . 1 . . . . . . . 1 . . 1 . . . . . . . . . 1 . . . 1 . 1 1 . . Weapon 4 | 1 1 . 1 . . . . . . . . . . . . . . . . . . . . . . . . . . . . . . . . . 1 . . . Parts Attached 612 | 5 23 8 17 . 23 3 8 6 15 4 16 13 7 2 17 41 7 18 5 16 9 7 2 18 5 1 9 5 28 17 17 . 10 10 19 22 54 43 52 30 Power 17 | 1 . . 2 . 2 . . . . . 2 . . . . 2 . . . . . . . 2 . . . . 1 . . . 1 . . 3 1 . . . Engine 4 | 1 . . 2 . 1 . . . . . . . . . . . . . . . . . . . . . . . . . . . . . . . . . . . Core 1 | . . . . . 1 . . . . . . . . . . . . . . . . . . . . . . . . . . . . . . . . . . . Reactor 12 | . . . . . . . . . . . 2 . . . . 2 . . . . . . . 2 . . . . 1 . . . 1 . . 3 1 . . . Propulsion 39 | 2 . . 1 . 2 1 . . . 1 . . . . 1 4 . 2 . 1 . . . 3 . . 1 . 1 1 . . 2 1 . . 1 6 8 . Treads 3 | . . . . . . . . . . . . . . . . . . . . . . . . . . . . . . . . . . . . . . 2 1 . Leg 35 | 2 . . 1 . 2 1 . . . 1 . . . . 1 3 . 2 . 1 . . . 3 . . 1 . 1 1 . . 2 1 . . 1 4 7 . Wheel . | . . . . . . . . . . . . . . . . . . . . . . . . . . . . . . . . . . . . . . . . . Hover 1 | . . . . . . . . . . . . . . . . 1 . . . . . . . . . . . . . . . . . . . . . . . . Flight . | . . . . . . . . . . . . . . . . . . . . . . . . . . . . . . . . . . . . . . . . . Utility 285 | . 4 1 6 . 10 2 4 1 7 2 7 8 4 . 6 15 5 9 4 7 8 2 2 8 2 1 6 5 17 2 11 . 6 4 13 9 33 24 24 6 Device 220 | . 1 . 2 . 7 2 2 . 5 . 6 5 3 . 3 9 5 7 4 7 6 1 1 6 2 1 1 3 14 2 10 . 6 4 13 8 26 21 21 6 Storage 1 | . . . . . . . . . . . . . . . . 1 . . . . . . . . . . . . . . . . . . . . . . . . Processor 25 | . 3 1 . . 1 . 2 . . 1 . 1 1 . . . . 2 . . . . . . . . 1 . 3 . . . . . . 1 5 2 1 . Hackware 14 | . . . 1 . . . . . 2 . . 1 . . 1 . . . . . 2 . . 2 . . 1 2 . . 1 . . . . . . . 1 . Protection 23 | . . . 3 . 2 . . 1 . 1 1 1 . . 2 5 . . . . . 1 1 . . . 3 . . . . . . . . . . 1 1 . Artifact 2 | . . . . . . . . . . . . . . . . . . . . . . . . . . . . . . . . . . . . . 2 . . . Weapon 271 | 2 19 7 8 . 9 . 4 5 8 1 7 5 3 2 10 20 2 7 1 8 1 5 . 5 3 . 2 . 9 14 6 . 1 5 6 10 19 13 20 24 Energy Gun 64 | 1 8 4 1 . . . . 1 . . 3 . 1 . 1 3 1 3 . 3 . 1 . 1 1 . 1 . . 1 . . . . . . 6 5 6 12 Energy Cannon 17 | . 3 . . . . . . . . . . . . . . . . . . . . . . 1 . . . . . 1 . . . 1 . 1 2 . 7 1 Ballistic Gun 80 | 1 . . 4 . 8 . 3 2 6 . 1 2 2 1 6 7 . 2 . 3 . 3 . 3 1 . 1 . 4 7 1 . . . 2 . 7 3 . . Ballistic Cannon 8 | . . . . . . . 1 2 1 1 1 . . . . . . . . . . . . . . . . . . . . . . . . . . . 2 . Launcher 51 | . 7 3 1 . . . . . . . 1 1 . 1 1 4 1 1 1 2 . 1 . . 1 . . . 2 3 2 . . 2 1 . 1 2 2 10 Special Weapon 9 | . . . . . 1 . . . . . . . . . 1 . . . . . . . . . . . . . 1 . 1 . 1 . . 3 . 1 . . Impact Weapon 9 | . 1 . 2 . . . . . . . . 2 . . 1 2 . . . . . . . . . . . . . . . . . . . 1 . . . . Slashing Weapon 7 | . . . . . . . . . . . . . . . . . . . . . . . . . . . . . . . . . . . . 4 1 . 1 1 Piercing Weapon 25 | . . . . . . . . . . . 1 . . . . 4 . 1 . . 1 . . . . . . . 2 2 2 . . 2 3 1 2 2 2 . Special Melee Weapon 1 | . . . . . . . . . 1 . . . . . . . . . . . . . . . . . . . . . . . . . . . . . . . Unidentified Prototypes 70 | . . . 2 . 10 . . . . . . . . . . 8 . . . . . 2 . 4 . . . . 8 . . . . . 1 3 10 8 14 . Corrupted Parts 9 | . . . 1 . . . . . . . . . . . . . . . . . . . . . . . . . 7 . . . . . . . 1 . . . System Corruption 69 | . . . 2 . . . . . . . . . . . . . . . . . . . . . . . . . 58 . . . . . . . 9 . . . Parts Lost 3 | . . . . . 1 . . . . . . . 1 . . . . . . . . . . 1 . . . . . . . . . . . . . . . . Power 1 | . . . . . . . . . . . . . . . . . . . . . . . . 1 . . . . . . . . . . . . . . . . Propulsion . | . . . . . . . . . . . . . . . . . . . . . . . . . . . . . . . . . . . . . . . . . Utility 1 | . . . . . . . . . . . . . 1 . . . . . . . . . . . . . . . . . . . . . . . . . . . Weapon 1 | . . . . . 1 . . . . . . . . . . . . . . . . . . . . . . . . . . . . . . . . . . . Highest Loss Streak 1 | . . . . . 1 . . . . . . . 1 . . . . . . . . . . 1 . . . . . . . . . . . . . . . . To Critical Strikes 1 | . . . . . 1 . . . . . . . . . . . . . . . . . . . . . . . . . . . . . . . . . . . Average Slot Usage (%) 90 | . 98 100 99 100 82 99 93 91 91 91 95 93 92 93 93 91 84 86 86 84 89 89 93 94 99 100 99 99 99 96 94 95 94 94 95 88 88 92 76 72 Engine 2 | . 12 11 10 16 14 7 7 6 6 6 2 . . . . . . . . . . . . . . . . . . . . . . . . . . . . . Reactor 6 | . . . . . . . . . . . 6 12 12 12 12 10 5 5 5 5 5 5 5 6 10 10 10 10 10 10 10 10 9 10 9 7 8 8 8 8 Leg 19 | . 26 22 26 25 24 23 21 20 20 18 18 18 18 18 17 20 23 22 21 21 21 21 21 21 21 21 21 21 21 21 20 20 19 20 19 18 17 15 13 8 Device 15 | . 2 . 1 8 8 22 17 13 13 6 11 11 17 18 16 11 11 12 11 11 11 15 16 13 25 26 17 14 14 15 17 15 19 19 22 26 24 19 14 19 Storage 2 | . . . . . . . . . . . . . . . . 2 5 5 5 5 5 5 5 5 5 5 5 5 5 5 5 5 5 5 4 4 4 4 4 4 Processor 18 | . 21 32 14 8 7 7 17 20 20 22 25 29 25 25 25 22 17 18 22 22 15 15 15 15 10 10 13 15 19 21 20 20 15 15 14 13 16 19 16 12 Protection 3 | . . . 5 8 6 . . 5 . 5 . 1 . . 1 . . . . . 5 6 8 5 5 5 8 10 5 5 5 5 5 5 4 4 4 4 4 4 Energy Gun 4 | . 21 30 24 . . . . . . . 4 1 2 . 4 . 1 3 4 2 5 4 5 3 4 5 4 5 5 2 . . . . . . 3 14 12 12 Energy Cannon 3 | . 5 . . . . . . . . . . . . . . 6 13 12 10 10 8 10 10 7 . . . . . 2 5 5 5 4 4 3 2 . 1 . Ballistic Gun 6 | . 1 . 2 25 11 30 19 18 16 12 12 11 9 12 8 6 . 2 4 2 5 4 5 7 14 15 15 15 14 8 3 5 2 . . . 1 2 . . Launcher 1 | . 4 2 . . . . . . . . . 5 6 6 5 1 3 1 . 2 . . . . . . . . . . 2 . . 1 . . . 1 1 . Naked Turns . | . . . . . . . . . . . . . . . . . . . . . . . . . . . . . . . . . . . . . . . . . Heaviest Build 154 | 9 14 14 29 29 55 54 57 77 77 78 80 80 59 57 78 95 97 98 88 88 94 102 101 101 75 75 80 80 79 88 86 78 90 97 98 113 118 120 151 154 Greatest Support 140 | 20 20 20 30 30 70 75 75 80 80 85 85 85 85 85 85 119 119 119 119 119 119 119 119 119 119 119 119 119 119 119 119 119 119 119 119 119 119 124 140 140 Greatest Overweight (x) 2 | . . . . . . . . 1 . . . . . . . . . . . . . . . . . . . . . . . . 1 1 . . 1 1 2 1 Average Overweight (x) . | . . . . . . . . . . . . . . . . . . . . . . . . . . . . . . . . . . . . . . . . . Largest Inventory Capacity 10 | 2 3 3 6 6 6 6 6 7 7 7 7 7 8 8 8 8 8 8 8 8 8 8 8 8 8 8 8 8 8 8 8 8 8 8 8 8 10 10 10 10 Average Capacity 7 | 2 2 3 4 6 6 6 6 6 7 7 7 7 7 8 8 8 8 8 8 8 8 8 8 8 8 8 8 8 8 8 8 8 8 8 8 8 8 10 10 10 Most Carried 10 | 1 3 3 6 6 6 6 6 7 7 7 7 7 8 8 8 8 8 8 8 8 8 8 8 8 8 8 8 8 8 8 8 8 8 8 8 8 10 10 10 10 Average Carried 7 | . 2 2 3 6 4 6 5 6 6 6 6 6 7 7 7 6 7 6 7 7 7 7 7 7 7 8 7 8 7 7 7 8 8 7 7 7 8 9 9 9 Final Capacity 10 | 2 3 3 6 6 6 6 6 7 7 7 7 7 8 8 8 8 8 8 8 8 8 8 8 8 8 8 8 8 8 8 8 8 8 8 8 8 10 10 10 10 Final Carried 10 | 1 3 3 6 6 6 6 6 7 7 7 6 6 8 8 7 8 7 7 8 8 7 8 8 8 8 8 8 8 8 8 8 8 8 8 8 8 10 10 10 9 Class Distribution -------------------- 14% | Scavenger-Gunner 11% | Scavenger-Skirmisher 10% | Scavenger-Mutant 8% | Scavenger-Assassin 7% | Hacker-Golem 5% | Alien-Gunner 5% | Mutant 5% | Scavenger-Gladiator 4% | Generator-Gladiator 3% | Scavenger-Golem 3% | Scavenger-Tank 3% | Alien-Gladiator Dominant Class ---------------- Mutant | -10/Materials Gunner | -10/Mines Hacker-Gunner | -9/Materials Tank | -9/Mines Mutant | -9/Exiles Scavenger-Gunner | -8/Mines Scavenger-Gunner | -8/Materials Scavenger-Gunner | -8/Garrison Scavenger-Gunner | -8/Materials Scavenger-Gunner | -7/Factory Scavenger-Gunner | -7/Waste Scavenger-Skirmisher | -7/Factory Scavenger-Skirmisher | -7/Lower Caves Scavenger-Skirmisher | -7/Lower Caves Scavenger-Skirmisher | -7/Zion Scavenger-Assassin | -7/Deep Caves Hacker-Golem | -6/Proximity Caves Hacker-Golem | -6/Factory Scavenger-Golem | -6/Waste Hacker-Golem | -6/Factory Hacker-Golem | -6/Extension Commander-Golem | -6/Cetus Commander-Mutant | -6/Archives Hacker-Gunner | -6/Hub_04(d) Scavenger-Gunner | -5/Factory Scavenger-Tank | -5/Waste Scavenger-Tank | -5/Factory Scavenger-Tank | -5/Garrison Scavenger-Gunner | -5/Factory Scavenger-Gunner | -5/Garrison Scavenger-Assassin | -4/Factory Scavenger-Assassin | -4/Waste Scavenger-Assassin | -4/Factory Scavenger-Mutant | -4/Garrison Scavenger-Assassin | -3/Research Scavenger-Gladiator | -3/Quarantine Generator-Gladiator | -3/Section 7 Alien-Assassin | -2/Research Alien-Gunner | -2/Testing Alien-Gladiator | -1/Access Resources | -11 -10 -10 -9 -9 -9 -8 -8 -8 -8 -7 -7 -7 -7 -7 -7 -7 -6 -6 -6 -6 -6 -6 -6 -6 -5 -5 -5 -5 -5 -5 -4 -4 -4 -4 -3 -3 -3 -2 -2 -1 ----------- Run | Scr Mat Min Mat Min Exi Min Mat Gar Mat Fac Was Fac Low Low Zio Dee Pro Fac Was Fac Ext Cet Arc Hub Fac Was Fac Gar Fac Gar Fac Was Fac Gar Res Qua Sec Res Tes Acc Matter Collected 27206 | 259 600 220 224 128 924 657 449 1099 782 80 308 750 368 26 1745 1379 195 467 148 652 421 213 257 361 405 431 365 535 805 695 1210 214 273 477 984 1207 2797 1966 1675 455 Remotely . | . . . . . . . . . . . . . . . . . . . . . . . . . . . . . . . . . . . . . . . . . Salvage Created 67279 | 69 566 324 1252 122 548 684 921 1578 1458 98 565 678 311 . 1705 4760 446 2498 1083 1905 1337 532 595 1452 430 935 472 1279 1540 416 3239 418 832 722 1518 2537 8607 5634 7564 5649 Parts 3184 | 2 53 8 116 13 67 29 52 77 97 3 44 52 21 . 149 87 39 126 30 128 68 35 34 78 24 26 23 52 103 29 133 11 50 45 89 129 217 210 328 307 Haulers Intercepted 19 | . 2 . 2 . . . . . 2 . . 1 . . . . . 1 . 1 . . . 1 . . 1 . 4 . 3 . . . . . . . 1 . Recyclers Shooed 14 | . 1 . . . . . . . . . . . . . . . . 8 . . . . . 1 . . 1 . 2 . 1 . . . . . . . . . Parts Field Recycled . | . . . . . . . . . . . . . . . . . . . . . . . . . . . . . . . . . . . . . . . . . Retrieved Matter . | . . . . . . . . . . . . . . . . . . . . . . . . . . . . . . . . . . . . . . . . . Parts Self-Destructed 58 | . . . . . . . . . . . . . 23 1 . . 34 . . . . . . . . . . . . . . . . . . . . . . . Prevented 10 | . . . . . . . . . . . . . 10 . . . . . . . . . . . . . . . . . . . . . . . . . . . Kills | -11 -10 -10 -9 -9 -9 -8 -8 -8 -8 -7 -7 -7 -7 -7 -7 -7 -6 -6 -6 -6 -6 -6 -6 -6 -5 -5 -5 -5 -5 -5 -4 -4 -4 -4 -3 -3 -3 -2 -2 -1 ------- Run | Scr Mat Min Mat Min Exi Min Mat Gar Mat Fac Was Fac Low Low Zio Dee Pro Fac Was Fac Ext Cet Arc Hub Fac Was Fac Gar Fac Gar Fac Was Fac Gar Res Qua Sec Res Tes Acc Combat Hostiles Destroyed 1130 | . 15 17 34 7 4 4 15 32 27 1 6 9 9 . 8 104 22 32 6 48 15 11 4 16 7 4 5 20 24 18 50 . 10 19 27 35 100 121 140 104 Melee 35 | . . . . . . . . . . . . . . . . 9 . . . 1 . . . . . . . . . 1 1 . 2 2 2 4 13 . . . Guns 479 | . 9 11 25 7 3 4 13 29 22 . 6 9 3 . 6 33 3 9 4 10 9 9 2 5 2 4 5 20 23 5 3 . . . 4 . 21 36 68 57 Cannons 157 | . 4 . . . 1 . 2 3 5 1 . . . . . 5 8 21 2 18 4 2 2 5 . . . . . 7 12 . 6 10 5 9 23 . . 2 AOE 352 | . 2 6 8 . . . . . . . . . 6 . 2 44 11 1 . 19 . . . 1 5 . . . . 5 19 . . 2 8 . 15 83 71 44 Classes Destroyed 38 | 1 8 2 3 . 2 1 1 2 . . 1 1 1 . 2 3 . 1 . 2 . . . . . . . . 1 . . . . . . 2 2 1 1 . Worker 63 | . 5 1 3 1 . 3 . . 2 . . 1 . . . . . 6 . 1 . . . 5 3 . . . 7 . 3 . 4 . 4 1 . . . 13 Builder 53 | . 2 . 4 . . 1 2 . 2 . . 1 . . . . . 4 . 5 . . . 3 . . . . 4 . 6 . . . . . 1 1 . 17 Tunneler 16 | . 2 1 . . . 5 . . 1 . . 1 . . . . . . . . . . . . . . . . 1 . 1 . . . 1 . . . . 3 Hauler 19 | . 2 . 2 . . . . . 2 . . 1 . . . . . 1 . 1 . . . 1 . . 1 . 4 . 3 . . . . . . . 1 . Recycler 22 | 1 . 2 . . . 2 . . . . . . . . . . . 3 . . 2 . . . . . . . . . 7 1 1 . 1 . 1 . . 1 Carrier 4 | . . . . . . . . . . . . . . . . . . . . . . . . . . . . . . . . . . . . . . 1 2 1 Minesweeper 1 | . . . . . . . . . . . . . 1 . . . . . . . . . . . . . . . . . . . . . . . . . . . Mechanic 28 | . . . 2 . . . . . . . . . . . . . . 1 . 1 . . . . . . . . . . . . . . . . 7 4 8 5 Operator 20 | . 2 . 1 . . . 1 . 1 . . . . . . . . . . . 1 . 7 1 . . 1 . 1 . . . . . 1 2 1 . . . Turret 1 | . . . . . 1 . . . . . . . . . . . . . . . . . . . . . . . . . . . . . . . . . . . Watcher 48 | . 2 . 4 . . . 2 . 2 1 . 2 . . . . . 1 . 2 1 2 . 1 2 . . . 1 . 4 . 1 . 3 3 3 4 2 5 Swarmer 132 | . 3 . . 7 . . . 13 5 . . . 4 . . . 14 3 . 10 2 2 . . . . 2 4 6 9 19 . . 7 10 4 2 3 . 3 Cutter 6 | . . . . . . . . 2 . . . . . . . . . . . . . . . . . . . . . . . . . 4 . . . . . . Saboteur 34 | . . . . . . . . . . . . . . . . . . . . 1 . . . . . . . . 2 2 1 . . . . . 4 9 13 2 Grunt 339 | . 12 . 28 . . 3 9 9 15 1 . 5 4 . . . 4 13 . 13 4 2 . 7 4 . . 9 6 4 11 . 3 4 8 11 21 49 44 36 Brawler 48 | . . . . . . . . . . . . . . . . . . 1 . 3 . . . . . . . . . 2 3 . 1 . . . 10 10 9 9 Duelist 49 | . . . 1 . . . 1 1 . . . . 1 . . . . 1 . 6 . . . . . . . . . . 2 . . . . . 9 9 12 6 Protector 28 | . . . . . . . . . . . . . . . . . . . . 4 . . . . . . . . . . 1 . . . . . 5 7 6 5 Researcher 17 | . . . . . . . . . . . . . . . . . . . . . . . . . . . . . . . . . . . . 6 9 . 2 . Sentry 75 | . . . 5 . . . 2 6 6 . . 4 . . . . 2 6 . 2 4 . 4 5 . . 1 2 1 . 3 . 1 1 2 . 4 4 4 6 Demolisher 3 | . . 2 . . . . . . . . . . . . . . . . . . . . . . . . . . . . . . . . . 1 . . . . Specialist 6 | . . . . . . . . . . . . . . . . . . . . . . . . . . . . . 2 . 4 . . . . . . . . . Hunter 84 | . . . . . . 1 2 . 1 . . . . . . . 2 5 . 5 1 . . . 2 . 2 4 3 . 2 . 3 . 2 4 10 9 8 18 Programmer 99 | . . . . . . . . . . . . 1 2 . . 1 . 2 . 4 . . . 1 . . . 1 2 1 3 . 2 2 6 3 19 14 26 9 Heavy 5 | . . . . . . . 1 . 1 . . . . . . . . . . . . . . . 1 . . . 1 . 1 . . . . . . . . . Behemoth 10 | . . . . . . . . 1 . . . . . . . . . 1 . . 2 . . . . . . . 1 . . . . 1 . . 2 2 . . Compactor 16 | . . . . . . . . . . . 6 . . . . . . . 6 . . . . . . 4 . . . . . . . . . . . . . . Cetus Guard 7 | . . . . . . . . . . . . . . . . . . . . . . 7 . . . . . . . . . . . . . . . . . . Quarantine Guard 12 | . . . . . . . . . . . . . . . . . . . . . . . . . . . . . . . . . . . . 12 . . . . S7 Guard 1 | . . . . . . . . . . . . . . . . . . . . . . . . . . . . . . . . . . . . . 1 . . . Enhanced Grunt 3 | . . . . . . . . . . . . . . . . . . . . . . . . 3 . . . . . . . . . . . . . . . . Lightning 3 | . . . . . . . . . . . . . . . . . . . . . . . . 3 . . . . . . . . . . . . . . . . Tracker 3 | . . . . . . . . . . . . . . . . . . . . . . . . . . . . . . . . . . . . . 1 . 2 . Combat Programmer 2 | . . . . . . . . . . . . . . . . . . . . . . . . . . . . . . . . . . . . . . . 2 . Investigator 6 | . . . . . . . . . . . . . . . . . . . . . . . . . . . . . . . . . . . . . 2 1 2 1 Striker 24 | . . . . . . . . . . . . . . . . . . . . . . . . . . . . . . . . . . . . . 3 5 11 5 Executioner 21 | . . . . . . . . . . . . . . . . . . . . . . . . . . . . . . . . . . . . . 11 2 3 5 Alpha 7 1 | . . . . . . . . . . . . . . . . . . . . . . . . . . . . . . . . . . . . . . . 1 . Fortress 1 | . . . . . . . . . . . . . . . . . . . . . . . . . . . . . . . . . . . . 1 . . . . Protovariant H 1 | . . . . . . . . . . . . . . . . . . . . . . . . . . . . . . . . . . . . . . . 1 . Zionite 63 | . . . . . 8 . . . . . . . . . 55 . . . . . . . . . . . . . . . . . . . . . . . . . Z-Light 9 | . . . . . . . . . . . . . . . . 9 . . . . . . . . . . . . . . . . . . . . . . . . Tinkerer 2 | . . . . . . . . . . . . . . . 2 . . . . . . . . . . . . . . . . . . . . . . . . . Assembler 2 | . . . . . . . . . . . . . . . . 2 . . . . . . . . . . . . . . . . . . . . . . . . Assembled 79 | . . 15 . . 3 . . . . . . . . . . 58 . . . . . . . . . . . . . . . . . . . . . . . 3 Golem 37 | . . . . . . . . . . . . . . . . 37 . . . . . . . . . . . . . . . . . . . . . . . . Surgeon 2 | . . . . . . . . . . . . . . . 1 . . . . . . . . . . . . . 1 . . . . . . . . . . . Wasp 2 | . . . . . . . . . . . . . . . . . . . . 2 . . . . . . . . . . . . . . . . . . . . Thug 6 | . . . . . . . . . . . . . . . 2 . . . . . 1 . . . . . . . . . . . 3 . . . . . . . Butcher 4 | . . . . . . . . . . . . 1 . . 1 . . . . . 1 . . 1 . . . . . . . . . . . . . . . . Martyr 5 | . . . . . . . . . . . 2 . . . . . . . . 2 . . . . . 1 . . . . . . . . . . . . . . Guerrilla 1 | . . . . . . . . . . . . . . . . . . . . . . 1 . . . . . . . . . . . . . . . . . . Marauder 2 | . . . . . . . . . . . . . . . 2 . . . . . . . . . . . . . . . . . . . . . . . . . Mutant 3 | . . . . . . . . . . . . . . . 3 . . . . . . . . . . . . . . . . . . . . . . . . . Best Kill Streak 111 | 1 5 15 19 4 7 4 9 7 9 2 5 3 4 . 28 37 6 9 2 11 3 5 6 12 7 1 2 7 8 8 18 1 6 4 10 6 23 41 40 111 Combat Bots Only 42 | . 4 14 11 4 3 3 7 7 6 1 5 2 4 . 2 37 6 6 2 10 2 4 4 4 6 1 2 7 5 8 10 . 4 4 10 5 18 38 36 42 Max Kills in Single Turn 19 | 1 3 2 4 2 1 3 2 2 3 1 1 1 3 . 3 19 3 3 1 4 1 2 1 6 3 1 1 2 3 4 8 1 1 2 5 2 6 8 9 9 Gunslinging 2 | . 1 1 . 1 . . . . . . . . . . . 1 . 1 . . . . . . . . . 1 . 1 . . . . . . 1 2 2 1 Exploded 19 | . 1 2 3 . . . . . . . . . 2 . 1 19 3 1 . 4 . . . 1 3 . . . . 4 7 . . 2 4 . 5 7 9 5 Melee 1 | . . . . . . . . . . . . . . . . 1 . . . 1 . . . . . . . . . 1 1 . 1 1 1 1 1 . . . Uniques/NPCs Destroyed 5 | . . . . . 4 . . . . . . . . . 1 . . . . . . . . . . . . . . . . . . . . . . . . . 8R-AWN (-9/Exiles) EX-DEC (-9/Exiles) EX-BIN (-9/Exiles) EX-HEX (-9/Exiles) Imprinter (-7/Zion) Combat | -11 -10 -10 -9 -9 -9 -8 -8 -8 -8 -7 -7 -7 -7 -7 -7 -7 -6 -6 -6 -6 -6 -6 -6 -6 -5 -5 -5 -5 -5 -5 -4 -4 -4 -4 -3 -3 -3 -2 -2 -1 -------- Run | Scr Mat Min Mat Min Exi Min Mat Gar Mat Fac Was Fac Low Low Zio Dee Pro Fac Was Fac Ext Cet Arc Hub Fac Was Fac Gar Fac Gar Fac Was Fac Gar Res Qua Sec Res Tes Acc Damage Taken 27413 | . 571 459 586 86 706 . 317 321 319 10 32 91 62 . 792 2165 930 1649 . 1651 814 237 55 633 305 . 157 281 1267 244 1785 . 89 201 199 573 1752 806 4957 2311 Core 19951 | . 457 384 431 63 533 . 249 246 262 8 25 67 51 . 595 1752 727 1316 . 1325 638 176 36 444 240 . 105 173 951 190 1345 . 54 134 135 427 1312 581 3020 1499 Absorbed by Shields 14317 | . . . 18 37 247 . 114 126 122 4 . 33 18 . 311 358 256 401 . 294 48 88 21 230 110 . 58 109 463 92 660 . 102 226 223 607 1877 849 3962 2253 Redirected to Core 17175 | . 379 268 381 51 438 . 233 192 166 8 25 52 41 . 559 1305 654 1095 . 1114 524 155 36 390 240 . 96 149 814 158 1245 . 52 128 116 402 1152 557 2684 1316 Regen/Repaired (Parts) 2211 | . . . . . . . . . 70 . . . . . . . . . . . . . . . 17 . . . . . . . 45 . . 49 142 . 1374 514 Core Remaining (%) 87 | 100 . 69 . . . 77 . . 100 . . . . . . . 100 . . . . . . 99 . . . . . 100 . . . 100 . . 95 . 33 . Volleys Fired 2251 | 3 71 32 51 10 63 24 35 78 53 2 12 51 28 . 175 106 30 92 18 88 34 18 37 41 24 24 21 34 61 33 100 . 29 41 65 93 202 95 148 129 Largest 5 | 2 3 3 3 3 4 4 4 3 3 3 3 4 2 . 4 4 4 4 4 4 4 4 4 4 4 4 4 4 4 4 2 . 2 1 1 1 5 5 5 5 Hottest 480 | 70 135 135 135 75 110 110 110 120 120 120 120 222 111 . 124 177 135 140 140 140 140 140 140 160 160 160 160 160 160 160 100 . 100 70 70 70 400 445 470 480 Shots Fired 5117 | 6 128 65 145 32 196 78 104 221 140 6 42 103 42 . 338 243 64 226 72 178 89 66 60 122 51 84 73 136 214 60 103 . 33 41 65 94 277 282 478 360 Gun 3848 | 6 68 51 141 32 177 78 88 207 115 4 39 99 38 . 312 200 19 86 36 78 53 34 44 89 47 84 73 136 214 40 10 . 4 . 19 . 123 238 438 328 Cannon 1008 | . 32 . . . . . 16 14 25 2 3 . . . . 30 39 139 36 85 36 32 16 33 . . . . . 17 86 . 26 40 41 90 150 . 14 6 Launcher 231 | . 28 14 4 . . . . . . . . 4 4 . 26 13 6 1 . 15 . . . . 4 . . . . 3 6 . . 1 2 . 4 44 26 26 Special 30 | . . . . . 19 . . . . . . . . . . . . . . . . . . . . . . . . . 1 . 3 . 3 4 . . . . Kinetic 2190 | 3 1 . 6 32 177 78 104 221 140 6 42 95 34 . 221 186 . 44 18 54 30 17 36 59 39 69 56 102 153 29 10 . 4 . 19 . 55 50 . . Thermal 654 | 3 39 . . . 19 . . . . . . 4 4 . 91 44 39 139 36 85 36 32 16 24 . . . . . . . . . . . . . . 2 41 Explosive 231 | . 28 14 4 . . . . . . . . 4 4 . 26 13 6 1 . 15 . . . . 4 . . . . 3 6 . . 1 2 . 4 44 26 26 Electromagnetic 717 | . 60 51 135 . . . . . . . . . . . . . . . . . . . . 9 . . . . . 17 86 . 26 40 41 90 150 . 12 . Slashing 987 | . . . . . . . . . . . . . . . . . . . . . . . . . . . . . . . . . . . . . 68 188 438 293 Phasic 327 | . . . . . . . . . . . . . . . . . 19 42 18 24 23 17 8 30 8 15 17 34 61 11 . . . . . . . . . . Robot Hit Streak 28 | 4 7 11 27 7 16 5 12 19 16 13 7 7 9 . 11 20 21 23 8 13 11 7 7 9 5 17 7 11 15 5 17 . 8 6 6 21 28 25 27 21 Robot Miss Streak 7 | 1 3 4 3 7 4 3 2 5 3 1 2 5 2 . 5 6 1 4 2 3 3 1 3 5 7 2 5 3 6 3 2 . 2 2 5 2 3 5 4 6 Penetration Max 2 | . . . . . . 2 2 1 2 . 1 2 2 . 1 2 . 2 . 2 2 1 1 1 1 . 1 2 2 1 1 . 1 . 1 1 2 2 1 1 Secondary Targets 108 | . 1 2 3 4 . . 1 2 1 . . . . . 2 7 . 1 . 1 . . . 1 . 1 1 8 3 2 . . . . . . 4 18 25 20 Max Gunslinging Chain 3 | . 1 1 1 2 . . 1 1 1 . . . . . 1 1 . 1 . 1 . . . 1 . 1 1 2 1 1 . . . . . . 1 2 3 1 Autonomous 155 | . . . . . . . 28 67 44 . 16 . . . . . . . . . . . . . . . . . . . . . . . . . . . . . Shots Hit Robots 3350 | 4 62 45 112 15 137 28 69 113 90 4 32 52 23 . 187 250 38 135 47 101 46 36 36 66 17 62 41 81 127 30 82 6 25 28 62 85 228 189 312 247 Core Hits 2578 | 2 46 47 89 8 34 17 31 52 48 2 14 31 18 . 92 240 30 73 15 97 30 20 19 48 26 18 11 40 61 21 76 2 29 16 34 38 206 276 346 275 Critical Kills 173 | . . . . . 2 8 4 10 14 . 6 11 . . 11 20 . 5 2 4 7 8 7 4 . 4 4 15 15 2 2 . . . 4 . 1 2 . 1 Critical Parts Destroyed 236 | . . . 3 . 6 6 4 25 17 2 2 20 7 . 17 18 . 11 . 11 1 2 9 7 3 4 9 19 20 2 2 . . . 5 . . 4 . . Critical Strikes 629 | . 1 . 3 . 8 14 10 38 33 2 12 32 7 . 35 40 3 16 5 16 11 13 17 14 3 17 16 35 37 4 18 2 7 7 22 20 36 21 30 24 Burn 6 | . 1 . . . . . . . . . . . . . 5 . . . . . . . . . . . . . . . . . . . . . . . . . Meltdown 1 | . . . . . . . . . . . . . . . . . . . . . . . . . . . . . . . . . . . . . . . . 1 Destroy 412 | . . . . . 8 14 8 35 31 2 12 32 7 . 30 28 . 16 3 16 8 10 16 11 3 16 13 34 35 4 4 . . . 9 . 1 6 . . Blast 7 | . . . . . . . 2 3 2 . . . . . . . . . . . . . . . . . . . . . . . . . . . . . . . Corrupt 85 | . . . . . . . . . . . . . . . . . . . . . . . . 1 . . . . . . 13 . 5 5 9 20 29 . 3 . Smash 13 | . . . 3 . . . . . . . . . . . . 10 . . . . . . . . . . . . . . . . . . . . . . . . Sever 71 | . . . . . . . . . . . . . . . . . . . . . . . . . . . . . . . . . . . . . 6 15 27 23 Impale 14 | . . . . . . . . . . . . . . . . 2 . . . . 1 . . . . . . . . . 1 2 2 2 4 . . . . . Intensify 20 | . . . . . . . . . . . . . . . . . 3 . 2 . 2 3 1 2 . 1 3 1 2 . . . . . . . . . . . Melee Attacks 404 | . 2 . 31 8 1 . . . 1 . 2 1 . . 7 133 . 9 . . 6 . . . . . . . 4 . 12 6 12 26 32 30 68 11 2 . Kinetic 1 | . . . . . . . . . . . . . . . . . . . . . . . . . . . . . . . . . . . . 1 . . . . Impact 116 | . 2 . 31 8 1 . . . . . . 1 . . 7 66 . . . . . . . . . . . . . . . . . . . . . . . . Slashing 94 | . . . . . . . . . . . . . . . . . . . . . . . . . . . . . . . . . . . . 26 66 . 2 . Piercing 192 | . . . . . . . . . . . 2 . . . . 67 . 9 . . 6 . . . . . . . 4 . 12 6 12 26 32 3 2 11 . . Sneak Attacks 31 | . . . 5 . . . . . 1 . 2 . . . . 2 . 1 . . 1 . . . . . . . 1 . 1 2 1 . 2 5 6 1 . . Combat Hostiles 2 | . . . . . . . . . . . . . . . . . . 1 . . . . . . . . . . . . . . . . . . . 1 . . Follow-up Attacks . | . . . . . . . . . . . . . . . . . . . . . . . . . . . . . . . . . . . . . . . . . Damage Inflicted 207966 | 46 1478 1051 3158 301 2278 559 2229 2956 3180 126 978 1485 1426 . 5492 13213 2934 6827 1821 8395 2076 1514 1134 4322 1281 1640 1155 1995 4242 1569 9140 437 1873 1944 4569 5431 18186 26131 32342 27052 Guns 74044 | 46 533 504 1572 301 2176 559 1521 2547 2274 71 738 1157 630 . 3494 2672 429 1581 620 1376 1003 604 625 1453 475 1640 1155 1995 3703 575 278 . 20 . 354 . 3898 7124 13279 11062 Cannons 37840 | . 394 . . . . . 694 409 883 55 104 . . . . 1271 1292 4425 1201 2607 956 910 509 846 . . . . . 298 4081 . 1038 1266 1992 3853 7489 . 538 729 Explosions 82856 | . 547 547 1113 . . . . . . . . 265 778 . 1998 4239 1213 404 . 4403 . . . 1991 806 . . . 343 696 4620 . 609 357 1382 . 3752 19007 18525 15261 Melee 12571 | . . . 473 . . . . . . . 136 . . . . 5031 . 237 . . 91 . . . . . . . 69 . 161 437 178 321 812 1578 3047 . . . Ramming 553 | . 4 . . . . . 14 . 23 . . 63 18 . . . . 180 . 9 26 . . 32 . . . . 127 . . . 28 . 29 . . . . . Kinetic 34243 | 22 10 . 51 301 2176 559 2215 2956 3157 126 842 1157 550 . 2323 2509 . 822 224 815 508 241 427 793 343 1277 825 1269 2581 377 278 . 20 . 354 . 2594 1541 . . Thermal 20963 | 24 454 52 429 . 102 . . . . . . 143 80 . 1171 1434 1292 4428 1201 2783 956 910 509 655 . . . . 150 . 811 . 277 . . . 732 . . 2370 Explosive 77112 | . 547 495 684 . . . . . . . . 122 778 . 1998 4239 1213 401 . 4227 . . . . 806 . . . 193 696 3809 . . 357 1382 . 3020 18891 18525 14729 Electromagnetic 25780 | . 463 504 1521 . . . . . . . . . . . . . . . . . . . . 2182 . . . . . 298 4081 . 1370 1266 1992 3853 7489 116 538 107 Impact 3342 | . . . 473 . . . . . . . . . . . . 2869 . . . . . . . . . . . . . . . . . . . . . . . . Slashing 34614 | . . . . . . . . . . . . . . . . . . . . . . . . . . . . . . . . . . . . 1555 4351 5583 13279 9846 Piercing 4627 | . . . . . . . . . . . 136 . . . . 2162 . 237 . . 91 . . . . . . . 69 . 161 437 178 321 812 23 . . . . Phasic 6732 | . . . . . . . . . . . . . . . . . 429 759 396 561 495 363 198 660 132 363 330 726 1122 198 . . . . . . . . . . Highest Corruption 58 | . . . 2 2 2 . . . . . 1 2 2 2 2 2 2 1 1 7 7 7 7 7 . 5 5 . 58 58 1 1 1 1 . 3 16 2 24 4 Average Corruption 5 | . . . 2 2 1 . . . . . 1 1 2 2 2 2 2 1 1 1 7 7 6 6 . 2 4 . 53 58 1 1 1 1 . 2 9 1 18 2 Corruption Purged 14 | . . . . . 2 . . . . . . . . . . . . . . . . . 7 . . . 5 . . . . . . . . . . . . . Corruption Blocked 175 | . . . . . . . . . . . . . . . . . . . . . . . . . . . . . . . . . . . . 30 105 . 40 . Effects 649 | . . . 3 7 22 . . . . . 1 24 17 9 29 37 17 13 6 20 27 14 10 11 . 6 8 . 4 45 3 3 11 2 . 34 111 16 131 8 Message Errors 134 | . . . . . 10 . . . . . . 5 7 . 10 12 6 2 . 3 4 2 3 2 . 2 2 . 2 7 . 2 3 . . 7 18 4 19 2 Matter Fused 131 | . . . 1 2 1 . . . . . . 3 1 1 5 6 4 3 3 5 5 4 2 2 . . 3 . 1 8 1 1 1 . . 7 24 6 30 1 Heat Flow Errors 78 | . . . . 2 1 . . . . . . 2 2 2 3 5 . 1 . 3 1 2 . 2 . 1 2 . . 2 . . 3 1 . 6 16 . 21 . Energy Discharges 87 | . . . . . 3 . . . . . 1 9 1 3 3 4 3 3 1 4 7 3 1 1 . . . . 1 1 . . 3 . . 6 8 2 17 2 Parts Rejected 5 | . . . . . . . . . . . . . . . . . . 2 . . . . . . . . . . . . . . . 1 . . . . 2 . Data Loss (minor) 79 | . . . 1 . 2 . . . . . . 4 4 2 6 6 1 1 1 2 4 1 2 2 . 2 1 . . 4 1 . . . . 2 15 1 13 1 Data Loss (major) 33 | . . . 1 1 2 . . . . . . . . 1 . 1 1 . 1 2 2 1 . . . 1 . . . 2 . . . . . 2 6 . 8 1 Misfires 29 | . . . . 2 . . . . . . . 1 . . 2 . 1 . . . . 1 . 1 . . . . . 5 1 . 1 . . 2 5 1 5 1 Alerts 17 | . . . . . 1 . . . . . . . 1 . . 1 1 . . . 3 . 1 . . . . . . 1 . . . . . 1 3 . 4 . Misdirections 8 | . . . . . . . . . . . . . . . . . . . . . . . . . . . . . . 2 . . . . . . 5 . 1 . Weapon Failures 48 | . . . . . 2 . . . . . . . 1 . . 2 . 1 . 1 1 . 1 1 . . . . . 13 . . . . . 1 11 2 11 . Overload Shots . | . . . . . . . . . . . . . . . . . . . . . . . . . . . . . . . . . . . . . . . . . Overflow Damage 9058 | . 23 26 266 . . . 51 40 116 . . 36 94 . 113 1224 232 377 . 353 66 55 . 63 14 . . . 66 27 642 309 148 111 440 615 904 854 567 1226 Projectiles 2252 | . . . . . . . 51 40 116 . . . . . . 26 101 360 . 169 66 55 . 30 . . . . . . 197 . 49 5 195 72 269 . 133 318 Explosions 3599 | . 23 26 1 . . . . . . . . 36 88 . 113 156 131 . . 184 . . . 33 14 . . . 25 27 393 . 47 12 20 . 74 854 434 908 Melee 3207 | . . . 265 . . . . . . . . . 6 . . 1042 . 17 . . . . . . . . . . 41 . 52 309 52 94 225 543 561 . . . Knockbacks 38 | . . . 2 . . . 7 . 5 . . 1 1 . . 16 . 1 . . 1 . . 1 . . . . 3 . . . . . . . . . . . Impact 25 | . . . 2 . . . . . . . . 1 1 . . 16 . 1 . . 1 . . 1 . . . . 2 . . . . . . . . . . . Kinetic 11 | . . . . . . . 6 . 5 . . . . . . . . . . . . . . . . . . . . . . . . . . . . . . . Secondary 2 | . . . . . . . 1 . . . . . . . . . . . . . . . . . . . . . 1 . . . . . . . . . . . Self-Inflicted Damage 1831 | . 237 . 90 . . . . . . . . . . . . . . . . 161 . . . 146 . . . . 84 76 577 . 5 . . . 72 . 313 70 Shots 36 | . 8 . 3 . . . . . . . . . . . . . . . . 4 . . . 2 . . . . 2 1 9 . 1 . . . 2 . 3 1 Rammed . | . . . . . . . . . . . . . . . . . . . . . . . . . . . . . . . . . . . . . . . . . Targets Rammed 56 | . 4 2 . . . . 3 . 2 . . 6 1 . . . . 16 . 2 1 . . 4 . . . . 12 . . . 1 . 2 . . . . . Kicked 56 | . 4 2 . . . . 3 . 2 . . 6 1 . . . . 16 . 2 1 . . 4 . . . . 12 . . . 1 . 2 . . . . . Crushed . | . . . . . . . . . . . . . . . . . . . . . . . . . . . . . . . . . . . . . . . . . Highest Temperature 443 | . 150 23 95 154 166 76 190 224 114 27 60 230 244 101 312 443 12 118 92 129 252 229 55 422 176 332 285 22 23 56 31 . 99 170 . 226 367 340 160 162 Average Temperature 63 | . 31 2 22 33 39 35 57 65 34 18 33 98 79 63 79 102 6 26 46 50 71 71 28 158 64 143 78 8 6 28 11 . 56 101 . 43 50 95 55 72 Received Heat Transfer 3382 | . 162 20 273 . 20 . 54 66 62 . 9 21 24 . 116 337 256 344 . 298 222 36 . 34 27 . 12 30 131 54 109 . 6 . 4 43 144 68 201 199 Effects 15 | . . . . . . . . . . . . . . . . 4 . . . . . . . 6 . 1 1 . . . . . . . . . 3 . . . Shutdowns 2 | . . . . . . . . . . . . . . . . 1 . . . . . . . 1 . . . . . . . . . . . . . . . . Energy Bleed 4 | . . . . . . . . . . . . . . . . . . . . . . . . 2 . 1 1 . . . . . . . . . . . . . Interference 9 | . . . . . . . . . . . . . . . . 3 . . . . . . . 3 . . . . . . . . . . . . 3 . . . Siege Activations . | . . . . . . . . . . . . . . . . . . . . . . . . . . . . . . . . . . . . . . . . . Robots Corrupted 102 | . . . 1 . . . . . . . . . . . . . . . . . . . . 8 . . . . . . 17 . 3 5 9 23 35 . 1 . Combat Hostiles 85 | . . . 1 . . . . . . . . . . . . . . . . . . . . 5 . . . . . . 15 . 2 5 8 21 27 . 1 . Parts Fried 258 | . 4 1 12 . . . 1 . . . . 1 1 . 1 . . . . . . 2 . 20 . . . . . . 29 . 9 7 24 60 76 . 9 1 Impact Corruptions 37 | . . . 8 . . . 1 . . . . . 2 . . 23 . 2 . . . . . . . . . . 1 . . . . . . . . . . . Robots Melted 1 | . . . . . . . . . . . . . . . . . . . . . . . . . . . . . . . . . . . . . . . . 1 Combat Hostiles 1 | . . . . . . . . . . . . . . . . . . . . . . . . . . . . . . . . . . . . . . . . 1 Parts Melted 15 | . . . 1 . . . . . . . . . . . 3 . . 1 . 1 . . . . . . . . . . 1 . . 1 . . 1 . 4 2 Heat Transferred 15646 | 74 999 50 550 . 136 . . . . . . 100 111 . 2160 959 700 2425 650 1575 525 500 275 425 . . . . 100 . 675 . 300 . . . 428 . . 1929 Parts Sabotaged 4 | . . . . . . . . . . . . . . . . . . . . 1 . . . . . . . . . 1 . . . . . . . . 2 . Parts Stolen 2 | . . . . . . . . . . . . . 2 . . . . . . . . . . . . . . . . . . . . . . . . . . . Parts Stripped . | . . . . . . . . . . . . . . . . . . . . . . . . . . . . . . . . . . . . . . . . . Power Chain Reactions 12 | . . . 6 . . . . . . . . . . . . . . . . . . . . 1 . . . . . . 1 . 2 . . . 2 . . . Missiles Intercepted . | . . . . . . . . . . . . . . . . . . . . . . . . . . . . . . . . . . . . . . . . . Alert | -11 -10 -10 -9 -9 -9 -8 -8 -8 -8 -7 -7 -7 -7 -7 -7 -7 -6 -6 -6 -6 -6 -6 -6 -6 -5 -5 -5 -5 -5 -5 -4 -4 -4 -4 -3 -3 -3 -2 -2 -1 ------- Run | Scr Mat Min Mat Min Exi Min Mat Gar Mat Fac Was Fac Low Low Zio Dee Pro Fac Was Fac Ext Cet Arc Hub Fac Was Fac Gar Fac Gar Fac Was Fac Gar Res Qua Sec Res Tes Acc Peak Influence 10176 | 5 1141 974 1181 716 . 193 593 1069 813 410 147 496 . . . . . 1360 483 1927 1433 1062 735 1155 948 290 876 1261 1178 1272 1411 501 556 725 770 978 5966 9580 10008 10176 Initial 6004 | . 3 444 303 416 . . 25 14 520 335 143 . . . . . . 56 476 93 1100 298 424 256 565 229 203 550 661 824 667 493 350 196 407 318 259 3355 5388 6004 Average 1961 | 2 522 790 699 587 . 72 229 575 397 344 84 285 . . . . . 817 359 1130 620 757 690 660 779 261 554 1063 774 1085 980 499 204 486 570 723 2699 8269 8905 7931 Maximum Alert Level 5 | . 4 3 4 3 . . 2 3 3 2 . 2 . . . . . 4 2 5 4 3 3 4 3 1 3 4 4 4 4 2 2 3 3 3 5 5 5 5 Low Security (%) 12 | 100 24 . . . . 100 47 17 11 . 100 17 . . . . . 5 9 14 3 . . 11 . . . . . . . . 56 7 . . 19 . . . Level 1 15 | . 17 . 9 . . . 35 7 46 86 . 64 . . . . . 18 45 4 37 7 . 27 . 100 32 . . . . . 32 29 . 3 21 . . . Level 2 22 | . 22 19 52 76 . . 16 44 33 13 . 18 . . . . . 17 45 2 28 20 32 4 29 . 45 19 32 . 14 100 11 44 91 34 3 . . . Level 3 20 | . 23 80 31 23 . . . 29 8 . . . . . . . . 17 . 5 3 72 67 34 70 . 22 17 64 67 44 . . 18 8 62 . . . . Level 4 9 | . 11 . 6 . . . . . . . . . . . . . . 41 . 61 27 . . 20 . . . 63 3 32 41 . . . . . . . . . Level 5 . | . . . . . . . . . . . . . . . . . . . . 1 . . . . . . . . . . . . . . . . . . 7 11 High Security 9 | . . . . . . . . . . . . . . . . . . . . 10 . . . . . . . . . . . . . . . . . . 92 88 Max Security 9 | . . . . . . . . . . . . . . . . . . . . . . . . . . . . . . . . . . . . . 55 99 . . Sterilizations 3 | . . . . . . . . . . . . . . . . . . . . . . . . . . . . . . . . . . . . . 1 1 1 . Squads Dispatched 272 | . 5 . 12 . . . 5 . 8 3 . 8 . . . . . 11 . 16 2 . . 8 2 . 7 . 4 . 10 . 6 . 5 10 48 33 35 34 Investigation 43 | . 4 . 6 . . . 3 . 5 3 . 4 . . . . . 3 . 2 2 . . 1 . . 4 . 1 . 1 . . . . 3 . . . 1 Extermination 15 | . . . . . . . . . . . . 2 . . . . . 1 . 1 . . . 1 . . . . 1 . 1 . 1 . 3 1 3 . . . Reinforcement 39 | . 1 . 3 . . . 2 . 2 . . 1 . . . . . 3 . 2 . . . 4 2 . 1 . 1 . 2 . 5 . 1 3 1 . . 5 Assault 155 | . . . 3 . . . . . 1 . . . . . . . . 3 . 8 . . . 1 . . 1 . 1 . 5 . . . 1 2 42 32 32 23 Garrison 15 | . . . . . . . . . . . . 1 . . . . . 1 . 3 . . . 1 . . 1 . . . 1 . . . . 1 . 1 . 5 Intercept 5 | . . . . . . . . . . . . . . . . . . . . . . . . . . . . . . . . . . . . . 2 . 3 . Searches Triggered . | . . . . . . . . . . . . . . . . . . . . . . . . . . . . . . . . . . . . . . . . . Construction Impeded 10 | . . . 1 . . . . . . . . 1 . . . . . 1 . 1 . . . 1 . . 1 . . . . . 1 . . . . . . 3 Haulers Reinforced 3 | . . . . . . . . . . . . . . . . . . . . 1 . . . . . . . . . . . . . . . . . . . 2 Active Scanning Responses . | . . . . . . . . . . . . . . . . . . . . . . . . . . . . . . . . . . . . . . . . . Cargo Convoy Interrupts 2 | . . . . . . . . . . . . . . . . . . . . 1 . . . . . . . . 1 . . . . . . . . . . . Stealth | -11 -10 -10 -9 -9 -9 -8 -8 -8 -8 -7 -7 -7 -7 -7 -7 -7 -6 -6 -6 -6 -6 -6 -6 -6 -5 -5 -5 -5 -5 -5 -4 -4 -4 -4 -3 -3 -3 -2 -2 -1 --------- Run | Scr Mat Min Mat Min Exi Min Mat Gar Mat Fac Was Fac Low Low Zio Dee Pro Fac Was Fac Ext Cet Arc Hub Fac Was Fac Gar Fac Gar Fac Was Fac Gar Res Qua Sec Res Tes Acc Distress Signals 28 | . 1 . 1 . . . . . . . . 2 . . . . . 5 . 2 . 2 . 2 . . . . . . 5 . 3 . 2 . 1 1 1 . Communications Jammed 275 | . . . . . . . . . . . . . . . . . . . . . . . . . . . . . 30 . 12 . 1 . . 3 229 . . . Distress Signals 258 | . . . . . . . . . . . . . . . . . . . . . . . . . . . . . 22 . 9 . 1 . . 2 224 . . . Times Spotted 1631 | . 21 17 49 7 25 4 18 26 30 4 5 25 10 2 56 134 14 41 5 62 27 20 17 28 10 7 15 23 37 16 59 . 13 17 30 40 210 160 192 155 Peak Tracking Total 37 | . 4 5 9 4 12 1 5 6 4 1 3 2 7 1 6 37 7 5 2 11 4 7 1 6 5 4 4 8 6 7 11 . 3 4 5 5 26 18 30 19 Tactical Retreats 62 | . . 2 1 . 4 . . . . . . . . . 6 6 . . . 4 . . . 1 . 1 . . 3 . 4 . 1 2 2 3 16 . 3 3 Traps | -11 -10 -10 -9 -9 -9 -8 -8 -8 -8 -7 -7 -7 -7 -7 -7 -7 -6 -6 -6 -6 -6 -6 -6 -6 -5 -5 -5 -5 -5 -5 -4 -4 -4 -4 -3 -3 -3 -2 -2 -1 ------- Run | Scr Mat Min Mat Min Exi Min Mat Gar Mat Fac Was Fac Low Low Zio Dee Pro Fac Was Fac Ext Cet Arc Hub Fac Was Fac Gar Fac Gar Fac Was Fac Gar Res Qua Sec Res Tes Acc Traps Triggered 42 | . 1 . 2 . . . . 4 . 1 . 2 . . . . . 3 . . . . . 2 3 . 2 3 2 1 1 . 3 3 2 2 1 3 1 . Indirectly 1 | . . . . . . . . . . . . . . . . . . . . . . . . 1 . . . . . . . . . . . . . . . . Trap Hack Attempts . | . . . . . . . . . . . . . . . . . . . . . . . . . . . . . . . . . . . . . . . . . Triggered . | . . . . . . . . . . . . . . . . . . . . . . . . . . . . . . . . . . . . . . . . . Disarmed 4 | . . . . . . . . . 4 . . . . . . . . . . . . . . . . . . . . . . . . . . . . . . . Reprogrammed 12 | . 6 . . . . . . . . . . 6 . . . . . . . . . . . . . . . . . . . . . . . . . . . . Reused . | . . . . . . . . . . . . . . . . . . . . . . . . . . . . . . . . . . . . . . . . . Traps Extracted . | . . . . . . . . . . . . . . . . . . . . . . . . . . . . . . . . . . . . . . . . . Installed 1 | . . 1 . . . . . . . . . . . . . . . . . . . . . . . . . . . . . . . . . . . . . . Triggered 5 | . . . . . . . . . . . . . . 2 . . . . . . . . . . . . . . 3 . . . . . . . . . . . Most Traps Carried 4 | . . 1 . . . . . . . . . . 4 4 4 . . . . . . . . . . . . . . . . . . . . . . . . . Exploded 3 | . . . . . 3 . . . . . . . . . . . . . . . . . . . . . . . . . . . . . . . . . . . Machines | -11 -10 -10 -9 -9 -9 -8 -8 -8 -8 -7 -7 -7 -7 -7 -7 -7 -6 -6 -6 -6 -6 -6 -6 -6 -5 -5 -5 -5 -5 -5 -4 -4 -4 -4 -3 -3 -3 -2 -2 -1 ---------- Run | Scr Mat Min Mat Min Exi Min Mat Gar Mat Fac Was Fac Low Low Zio Dee Pro Fac Was Fac Ext Cet Arc Hub Fac Was Fac Gar Fac Gar Fac Was Fac Gar Res Qua Sec Res Tes Acc Machines Disabled 366 | . 21 13 15 9 12 6 7 7 9 . . 14 . . 3 4 . 28 . 15 7 3 4 26 2 . 3 2 12 3 33 . 16 4 . 11 20 22 26 9 Max in Single Turn 11 | . 2 4 1 1 1 1 2 2 3 . . 4 . . 1 1 . 6 . 5 1 1 1 11 1 . 1 1 3 1 5 . 4 1 . 2 1 1 3 2 Garrison Access 17 | . . . . . . . . . . . . . . . . . . 3 . 2 . . . 1 . . . . 3 . 2 . 1 . . 1 . 2 1 1 Garrison Relay 10 | . . . . . . . . 5 . . . . . . . . . . . . . . . . . . . 2 . 1 . . . 2 . . . . . . Phase Generator 1 | . . . . . . . . 1 . . . . . . . . . . . . . . . . . . . . . . . . . . . . . . . . Network Hub 3 | . . . . . . . . . . . . . . . . . . . . . . . . 3 . . . . . . . . . . . . . . . . Energy Cycler 2 | . . . . . . . . . . . . . . . . . . . . . 2 . . . . . . . . . . . . . . . . . . . Machines Sabotaged 1 | . . . . . . . . . 1 . . . . . . . . . . . . . . . . . . . . . . . . . . . . . . . Garrisons Compromised 1 | . . . . . . . . . . . . . . . . . . . . . . . . . . . . . 1 . . . . . . . . . . . Overloaded Fab Kills . | . . . . . . . . . . . . . . . . . . . . . . . . . . . . . . . . . . . . . . . . . Hacking | -11 -10 -10 -9 -9 -9 -8 -8 -8 -8 -7 -7 -7 -7 -7 -7 -7 -6 -6 -6 -6 -6 -6 -6 -6 -5 -5 -5 -5 -5 -5 -4 -4 -4 -4 -3 -3 -3 -2 -2 -1 --------- Run | Scr Mat Min Mat Min Exi Min Mat Gar Mat Fac Was Fac Low Low Zio Dee Pro Fac Was Fac Ext Cet Arc Hub Fac Was Fac Gar Fac Gar Fac Was Fac Gar Res Qua Sec Res Tes Acc Machines Accessed 159 | . 9 . 8 1 2 . 8 . 11 5 . 12 1 1 . . 1 12 . 7 13 1 . 9 3 . 6 . 9 . 5 . 10 . 4 9 7 . 4 1 Terminals 108 | . 7 . 5 1 . . 6 . 8 3 . 7 . 1 . . 1 6 . 3 13 1 . 8 2 . 4 . 5 . 3 . 4 . 3 6 7 . 3 1 Fabricators 13 | . . . . . . . . . . 2 . 3 . . . . . 2 . . . . . . . . 1 . . . 1 . 3 . 1 . . . . . Repair Stations 4 | . . . . . . . . . 1 . . . . . . . . 1 . . . . . . 1 . . . . . . . 1 . . . . . . . Recycling Units 7 | . 2 . 1 . . . 1 . 1 . . 1 . . . . . . . 1 . . . . . . . . . . . . . . . . . . . . Scanalyzers 6 | . . . 2 . . . . . . . . 1 . . . . . 1 . . . . . . . . . . . . . . . . . 2 . . . . Garrison Access 18 | . . . . . . . 1 . 1 . . . . . . . . 2 . 3 . . . 1 . . 1 . 4 . 1 . 2 . . 1 . . 1 . Total Hacks 607 | . 40 . 21 1 2 . 27 . 47 15 . 36 1 2 . . 4 28 . 20 42 2 . 51 18 . 32 . 36 . 30 . 42 . 24 39 29 . 11 7 Successful 320 | . 26 . 9 . 2 . 15 . 33 10 . 22 1 2 . . 4 15 . 10 20 . . 29 9 . 15 . 19 . 13 . 27 . 7 13 11 . 5 3 Failed 284 | . 13 . 12 1 . . 12 . 13 5 . 14 . . . . . 13 . 10 22 2 . 22 9 . 17 . 17 . 17 . 14 . 17 26 18 . 6 4 Catastrophic 55 | . . . 2 . . . 3 . 4 2 . 1 . . . . . 4 . 4 2 . . 2 3 . 2 . 2 . 5 . 2 . 2 6 7 . 2 . Database Lockouts 3 | . 1 . . . . . . . 1 . . . . . . . . . . . . . . . . . . . . . . . 1 . . . . . . . Manual 322 | . 16 . 10 3 1 . 17 . 24 4 . 12 . . . . . 10 . 14 13 1 . 36 9 . 22 . 14 . 27 . 22 . 18 26 17 . 5 1 Terminals 480 | . 35 . 18 1 . . 24 . 39 10 . 23 . 2 . . 4 15 . 6 42 2 . 47 15 . 23 . 26 . 24 . 30 . 20 30 29 . 8 7 Fabricators 37 | . . . . . . . . . . 5 . 11 . . . . . 6 . . . . . . . . 4 . . . 2 . 5 . 4 . . . . . Repair Stations 11 | . . . . . . . . . 3 . . . . . . . . 2 . . . . . . 3 . . . . . . . 3 . . . . . . . Recycling Units 13 | . 5 . 1 . . . 2 . 2 . . 1 . . . . . . . 2 . . . . . . . . . . . . . . . . . . . . Scanalyzers 8 | . . . 2 . . . . . . . . 1 . . . . . 2 . . . . . . . . . . . . . . . . . 3 . . . . Garrison Access 55 | . . . . . . . 1 . 3 . . . . . . . . 3 . 12 . . . 4 . . 5 . 10 . 4 . 4 . . 6 . . 3 . Terminal Hacks 185 | . 16 . 6 . 2 . 10 . 19 4 . 10 1 2 . . 4 8 . 1 19 . . 18 4 . 7 . 8 . 6 . 14 . 4 6 10 . 3 3 Record 9 | . . . . . 1 . . . . . . . . 2 . . 4 . . . . . . . . . . . . . . . . . . 1 . . . 1 Part Schematic 4 | . . . . . . . . . 1 . . . . . . . . . . . . . . 1 . . 1 . . . . . . . . . . . 1 . Robot Schematic 1 | . . . . . . . . . . 1 . . . . . . . . . . . . . . . . . . . . . . . . . . . . . . Robot Analysis 10 | . 2 . 1 . . . . . . . . 1 . . . . . . . . . . . 1 . . 1 . . . . . 2 . . . 2 . . . Prototype ID Bank 15 | . 3 . 1 . . . . . 3 . . 2 . . . . . 1 . . 1 . . 1 . . . . . . . . 2 . . 1 . . . . Open Door 11 | . . . . . . . . . . . . . 1 . . . . . . 1 5 . . . . . . . . . . . . . . 1 2 . 1 . Open DSF 1 | . . . . . . . . . . . . . . . . . . 1 . . . . . . . . . . . . . . . . . . . . . . Branch Access Points 10 | . 1 . . . . . 1 . 1 . . 1 . . . . . 1 . . . . . 1 . . . . 1 . . . 1 . 1 . . . . 1 Emergency Access Points 1 | . . . . . . . . . . . . . . . . . . . . . . . . 1 . . . . . . . . . . . . . . . . Machine Index 7 | . . . . . . . . . 1 . . . . . . . . . . . 1 . . . 1 . . . 1 . 1 . 1 . 1 . . . . . Terminal Index 3 | . . . . . . . . . . 1 . . . . . . . . . . 1 . . . . . . . . . . . 1 . . . . . . . Fabricator Index 2 | . . . . . . . . . . . . 1 . . . . . 1 . . . . . . . . . . . . . . . . . . . . . . Repair Station Index 1 | . 1 . . . . . . . . . . . . . . . . . . . . . . . . . . . . . . . . . . . . . . . Recycling Unit Index 1 | . 1 . . . . . . . . . . . . . . . . . . . . . . . . . . . . . . . . . . . . . . . Scanalyzer Index 1 | . . . . . . . . . . . . . . . . . . . . . . . . . . . . . . . . . . . . . 1 . . . Garrison Index 4 | . . . . . . . . . . . . . . . . . . . . . . . . 1 . . 1 . 1 . . . 1 . . . . . . . Alert Level 6 | . 3 . . . . . 2 . . . . . . . . . . . . . . . . . . . . . . . . . . . . . . . . 1 Unreport Threat 45 | . . . 2 . . . 4 . 4 . . 1 . . . . . 2 . . 7 . . 7 1 . 1 . 2 . 5 . 3 . 1 3 2 . . . Locate Traps 9 | . . . 1 . . . . . 1 1 . 1 . . . . . 1 . . 1 . . . . . 1 . . . . . 2 . . . . . . . Disarm Traps 1 | . . . . . . . . . 1 . . . . . . . . . . . . . . . . . . . . . . . . . . . . . . . Reprogram Traps 2 | . 1 . . . . . . . . . . 1 . . . . . . . . . . . . . . . . . . . . . . . . . . . . Dispatch Records 1 | . . . . . . . . . 1 . . . . . . . . . . . . . . . . . . . . . . . . . . . . . . . Security Status 1 | . . . . . . . 1 . . . . . . . . . . . . . . . . . . . . . . . . . . . . . . . . . Patrol Status 2 | . . . . . . . 1 . 1 . . . . . . . . . . . . . . . . . . . . . . . . . . . . . . . Recall Investigation 3 | . 1 . . . . . . . . 1 . . . . . . . . . . . . . . . . 1 . . . . . . . . . . . . . Hauler Manifests 6 | . 1 . 1 . . . . . . . . . . . . . . . . . 1 . . . 1 . . . 2 . . . . . . . . . . . Registered Components 2 | . . . . . . . 1 . 1 . . . . . . . . . . . . . . . . . . . . . . . . . . . . . . . Registered Prototypes 3 | . . . . . . . . . . . . 1 . . . . . . . . . . . . . . . . . . . . 1 . 1 . . . . . Zone Layout 21 | . 2 . . . . . . . 4 . . 1 . . . . . 1 . . 2 . . 5 1 . 1 . 1 . . . . . . . 2 . 1 . EX-Prototype ID Bank 1 | . . . . . 1 . . . . . . . . . . . . . . . . . . . . . . . . . . . . . . . . . . . Activate Exoskeleton 1 | . . . . . . . . . . . . . . . . . . . . . . . . . . . . . . . . . . . . . 1 . . . Fabricator Hacks 20 | . . . . . . . . . . 5 . 7 . . . . . 3 . . . . . . . . 3 . . . 1 . 1 . . . . . . . Network Status 5 | . . . . . . . . . . 1 . . . . . . . 1 . . . . . . . . 1 . . . 1 . 1 . . . . . . . Load Schematic 8 | . . . . . . . . . . 2 . 4 . . . . . 1 . . . . . . . . 1 . . . . . . . . . . . . . Build 7 | . . . . . . . . . . 2 . 3 . . . . . 1 . . . . . . . . 1 . . . . . . . . . . . . . Repair Station Hacks 6 | . . . . . . . . . 2 . . . . . . . . . . . . . . . 2 . . . . . . . 2 . . . . . . . Scan Component 3 | . . . . . . . . . 1 . . . . . . . . . . . . . . . 1 . . . . . . . 1 . . . . . . . Repair 3 | . . . . . . . . . 1 . . . . . . . . . . . . . . . 1 . . . . . . . 1 . . . . . . . Recycling Unit Hacks 7 | . 3 . 1 . . . 1 . 1 . . 1 . . . . . . . . . . . . . . . . . . . . . . . . . . . . Report Inventory 1 | . 1 . . . . . . . . . . . . . . . . . . . . . . . . . . . . . . . . . . . . . . . Retrieve Components 6 | . 2 . 1 . . . 1 . 1 . . 1 . . . . . . . . . . . . . . . . . . . . . . . . . . . . Scanalyzer 2 | . . . . . . . . . . . . . . . . . . . . . . . . . . . . . . . . . . . . 2 . . . . Insert Component 2 | . . . . . . . . . . . . . . . . . . . . . . . . . . . . . . . . . . . . 2 . . . . Garrison Access Hacks 28 | . . . . . . . 1 . 1 . . . . . . . . 2 . 4 . . . 2 . . 2 . 8 . 2 . 4 . . 1 . . 1 . Unlock Access 6 | . . . . . . . 1 . . . . . . . . . . . . . . . . 1 . . 1 . 1 . 1 . 1 . . . . . . . Seal Access 7 | . . . . . . . . . . . . . . . . . . 1 . 1 . . . . . . . . 3 . . . 1 . . . . . 1 . Coupler Status 15 | . . . . . . . . . 1 . . . . . . . . 1 . 3 . . . 1 . . 1 . 4 . 1 . 2 . . 1 . . . . Unauthorized Hacks 72 | . 7 . 2 . . . 3 . 10 1 . 4 . . . . . 2 . 5 1 . . 9 3 . 3 . 3 . 4 . 6 . 3 4 1 . 1 . Terminals 40 | . 6 . . . . . 2 . 7 1 . 2 . . . . . . . 1 1 . . 8 2 . 1 . 2 . 1 . 1 . 2 1 1 . 1 . Track 7 | . . . . . . . . . 1 . . . . . . . . . . . . . . 3 1 . . . 1 . . . . . . . . . 1 . Assimilate 5 | . . . . . . . . . . 1 . 1 . . . . . . . . . . . . . . . . 1 . . . . . 1 . 1 . . . Botnet 20 | . 4 . . . . . 1 . 3 . . 1 . . . . . . . 1 1 . . 3 1 . 1 . . . 1 . 1 . 1 1 . . . . Detonate 3 | . 1 . . . . . . . 1 . . . . . . . . . . . . . . 1 . . . . . . . . . . . . . . . . Operators 3 | . . . . . . . 1 . 1 . . . . . . . . . . . . . . 1 . . . . . . . . . . . . . . . . Sabotage 1 | . . . . . . . . . 1 . . . . . . . . . . . . . . . . . . . . . . . . . . . . . . . Search 1 | . 1 . . . . . . . . . . . . . . . . . . . . . . . . . . . . . . . . . . . . . . . Fabricators 7 | . . . . . . . . . . . . 1 . . . . . . . . . . . . . . . . . . 1 . 4 . 1 . . . . . Fabnet 5 | . . . . . . . . . . . . . . . . . . . . . . . . . . . . . . . 1 . 3 . 1 . . . . . Haulers 1 | . . . . . . . . . . . . . . . . . . . . . . . . . . . . . . . . . 1 . . . . . . . Recompile 1 | . . . . . . . . . . . . 1 . . . . . . . . . . . . . . . . . . . . . . . . . . . . Repair Stations 4 | . . . . . . . . . 1 . . . . . . . . 1 . . . . . . 1 . . . . . . . 1 . . . . . . . Mechanics 4 | . . . . . . . . . 1 . . . . . . . . 1 . . . . . . 1 . . . . . . . 1 . . . . . . . Recycling Units 4 | . 1 . . . . . 1 . 1 . . . . . . . . . . 1 . . . . . . . . . . . . . . . . . . . . Mask 1 | . . . . . . . . . . . . . . . . . . . . 1 . . . . . . . . . . . . . . . . . . . . Tunnel 3 | . 1 . . . . . 1 . 1 . . . . . . . . . . . . . . . . . . . . . . . . . . . . . . . Scanalyzers 4 | . . . 2 . . . . . . . . 1 . . . . . . . . . . . . . . . . . . . . . . . 1 . . . . Researchers 1 | . . . . . . . . . . . . . . . . . . . . . . . . . . . . . . . . . . . . 1 . . . . Extract 3 | . . . 2 . . . . . . . . 1 . . . . . . . . . . . . . . . . . . . . . . . . . . . . Garrison Access 13 | . . . . . . . . . 1 . . . . . . . . 1 . 3 . . . 1 . . 2 . 1 . 2 . . . . 2 . . . . Broadcast 1 | . . . . . . . . . . . . . . . . . . . . 1 . . . . . . . . . . . . . . . . . . . . Restock 3 | . . . . . . . . . . . . . . . . . . . . . . . . . . . 1 . . . 1 . . . . 1 . . . . Reprogram 8 | . . . . . . . . . 1 . . . . . . . . 1 . 1 . . . 1 . . 1 . 1 . 1 . . . . 1 . . . . Intercept 1 | . . . . . . . . . . . . . . . . . . . . 1 . . . . . . . . . . . . . . . . . . . . Data Cores Recovered 4 | . 1 . . . . . . . 1 . . . . . . . . . . . . . . . . . 1 . . . . . 1 . . . . . . . Used 3 | . . . . . . . . . 1 . . . . . . . . . . . . . . . . . 1 . . . . . 1 . . . . . . . Hacking Detections 106 | . 6 . 5 1 . . 5 . 9 5 . 10 . . . . . 9 . 5 7 2 . 7 1 . 5 . 3 . 4 . 5 . 4 6 4 . 2 1 Full Trace Events 27 | . 2 . 3 1 . . 2 . 3 3 . 2 . . . . . 2 . 1 2 . . . . . 2 . . . 1 . . . . 2 . . . 1 Feedback Events . | . . . . . . . . . . . . . . . . . . . . . . . . . . . . . . . . . . . . . . . . . Feedback Blocked . | . . . . . . . . . . . . . . . . . . . . . . . . . . . . . . . . . . . . . . . . . Robot Schematics Acquired 12 | . . . . . . . . . . 1 . . . . . . . . . . . . . . . . . . . . . . . . . 6 3 . 2 . Robots Built 10 | . . . . . . . . . . 2 . 6 . . . . . 2 . . . . . . . . . . . . . . . . . . . . . . Authchips 1 | . . . . . . . . . . . . 1 . . . . . . . . . . . . . . . . . . . . . . . . . . . . Time 469 | . . . . . . . . . . 67 . 335 . . . . . 67 . . . . . . . . . . . . . . . . . . . . . . Total Robot Build Rating 40 | . . . . . . . . . . 8 . 24 . . . . . 8 . . . . . . . . . . . . . . . . . . . . . . Part Schematics Acquired 54 | . . . 6 . . . . . 1 . . 2 . . . . . . . . . . . 1 . . 1 . . . . . . . . 16 21 . 6 . Parts Built 4 | . . . . . . . . . . 2 . . . . . . . . . . . . . . . . 2 . . . . . . . . . . . . . Authchips . | . . . . . . . . . . . . . . . . . . . . . . . . . . . . . . . . . . . . . . . . . Time 109 | . . . . . . . . . . 62 . . . . . . . . . . . . . . . . 47 . . . . . . . . . . . . . Total Part Build Rating 14 | . . . . . . . . . . 4 . . . . . . . . . . . . . . . . 10 . . . . . . . . . . . . . Parts Repaired 3 | . . . . . . . . . 1 . . . . . . . . . . . . . . . 1 . . . . . . . 1 . . . . . . . Time 200 | . . . . . . . . . 38 . . . . . . . . . . . . . . . 108 . . . . . . . 54 . . . . . . . Parts Recycled . | . . . . . . . . . . . . . . . . . . . . . . . . . . . . . . . . . . . . . . . . . Recycled Matter . | . . . . . . . . . . . . . . . . . . . . . . . . . . . . . . . . . . . . . . . . . Retrieved Matter . | . . . . . . . . . . . . . . . . . . . . . . . . . . . . . . . . . . . . . . . . . Retrieved Components 20 | . 3 . 3 . . . 2 . 10 . . 2 . . . . . . . . . . . . . . . . . . . . . . . . . . . . Parts Scanalyzed . | . . . . . . . . . . . . . . . . . . . . . . . . . . . . . . . . . . . . . . . . . Part Schematics Acquired . | . . . . . . . . . . . . . . . . . . . . . . . . . . . . . . . . . . . . . . . . . Parts Damaged . | . . . . . . . . . . . . . . . . . . . . . . . . . . . . . . . . . . . . . . . . . Bothacking | -11 -10 -10 -9 -9 -9 -8 -8 -8 -8 -7 -7 -7 -7 -7 -7 -7 -6 -6 -6 -6 -6 -6 -6 -6 -5 -5 -5 -5 -5 -5 -4 -4 -4 -4 -3 -3 -3 -2 -2 -1 ------------ Run | Scr Mat Min Mat Min Exi Min Mat Gar Mat Fac Was Fac Low Low Zio Dee Pro Fac Was Fac Ext Cet Arc Hub Fac Was Fac Gar Fac Gar Fac Was Fac Gar Res Qua Sec Res Tes Acc Used RIF Installer 4 | . . . . . . . . 1 . . . . . . . . . . . . . . . . . . . 1 . 1 . . . 1 . . . . . . Threat Obfuscator 1 | . . . . . . . . . . . . . . . . . . . . . . . . . . . . 1 . . . . . . . . . . . . Robot Detection 1 | . . . . . . . . . . . . . . . . . . . . . . . . . . . . . . 1 . . . . . . . . . . Program Shield 1 | . . . . . . . . . . . . . . . . . . . . . . . . . . . . . . . . . . 1 . . . . . . Robots Hacked 45 | . . . . . . . . . 1 . . . . . . . . . . . . . . . . . . . . . . . 2 . 4 4 18 10 6 . Non-combat 5 | . . . . . . . . . 1 . . . . . . . . . . . . . . . . . . . . . . . 2 . 2 . . . . . Combat 40 | . . . . . . . . . . . . . . . . . . . . . . . . . . . . . . . . . . . 2 4 18 10 6 . Robot Hacks Applied 7 | . . . . . . . . . 1 . . . . . . . . . . . . . . . . . . . . . . . 2 . 2 2 . . . . parse_system 1 | . . . . . . . . . . . . . . . . . . . . . . . . . . . . . . . . . . . . 1 . . . . map_route 3 | . . . . . . . . . . . . . . . . . . . . . . . . . . . . . . . . . 1 . 2 . . . . . locate_prototypes 1 | . . . . . . . . . . . . . . . . . . . . . . . . . . . . . . . . . . . . 1 . . . . formatsys_low 2 | . . . . . . . . . 1 . . . . . . . . . . . . . . . . . . . . . . . 1 . . . . . . . Relay Couplers Released 25 | . . . . . . . . 9 . . . . . . . . . 2 . . . . . 1 . . . 4 . 2 2 . . 4 . . . 1 . . Machine Destruction 24 | . . . . . . . . 9 . . . . . . . . . 2 . . . . . 1 . . . 4 . 2 1 . . 4 . . . 1 . . Programmers 1 | . . . . . . . . . . . . . . . . . . . . . . . . . . . . . . . 1 . . . . . . . . . Attached 4 | . . . . . . . . . 1 . . . . . . . . . . . . . . . . . . 2 . . 1 . . . . . . . . . Fabnet Peak Effective % 9 | . . . . . . . . . . . . . . . . . . . . . . . . . . . . . . . . . . . 9 9 9 6 6 1 Autooverrided 38 | . . . . . . . . . . . . . . . . . . . . . . . . . . . . . . . . . . . 2 2 18 10 6 . Robots Rewired 15 | . . . . . . . . . . . . . 2 . . . . . . . 11 . . . . . . . . . . . . . . . . . 2 . Allies Hacked 8 | . . . . . . . . . . . . 3 2 . 1 . . . . 1 . . . . . . . . . . . . . . 1 . . . . . Hacks Repelled . | . . . . . . . . . . . . . . . . . . . . . . . . . . . . . . . . . . . . . . . . . Allies | -11 -10 -10 -9 -9 -9 -8 -8 -8 -8 -7 -7 -7 -7 -7 -7 -7 -6 -6 -6 -6 -6 -6 -6 -6 -5 -5 -5 -5 -5 -5 -4 -4 -4 -4 -3 -3 -3 -2 -2 -1 -------- Run | Scr Mat Min Mat Min Exi Min Mat Gar Mat Fac Was Fac Low Low Zio Dee Pro Fac Was Fac Ext Cet Arc Hub Fac Was Fac Gar Fac Gar Fac Was Fac Gar Res Qua Sec Res Tes Acc Total Allies 194 | . . . . . . . . . 3 3 19 9 4 . 1 . . 2 18 3 23 5 . 1 . 19 1 . . . . 20 1 . 3 6 20 10 8 15 Largest Group 20 | . . . . . . . . . 2 3 18 16 7 7 5 2 . 2 18 18 9 10 9 8 . 19 18 8 1 . . 20 15 . 2 3 3 2 2 9 Highest-Rated Group 1288 | . . . . . . . . . 32 84 444 374 215 215 140 51 . 74 656 656 359 739 705 552 . 684 625 294 26 . . 794 583 . 92 141 1288 1265 244 203 Highest-Rated Ally 1201 | . . . . . . . . . 16 37 37 37 49 43 37 37 . 37 50 50 159 153 153 96 . 50 47 46 26 . . 50 50 . 47 47 1201 1201 154 90 Total Orders 19 | . . . . . . . . . 1 . . . . . 8 . . . . . . . . 4 . . . . . . . . 2 . 2 . . 2 . . STAY 13 | . . . . . . . . . . . . . . . 7 . . . . . . . . 4 . . . . . . . . 1 . 1 . . . . . FOLLOW 2 | . . . . . . . . . . . . . . . 1 . . . . . . . . . . . . . . . . . . . 1 . . . . . AID 2 | . . . . . . . . . 1 . . . . . . . . . . . . . . . . . . . . . . . 1 . . . . . . . EXPLORE 2 | . . . . . . . . . . . . . . . . . . . . . . . . . . . . . . . . . . . . . . 2 . . Ally Attacks 1242 | . . . . . . . . . 2 15 18 124 55 11 33 9 . 4 . 87 69 70 5 58 . 13 110 34 . . . . 68 . 3 11 185 110 17 131 Total Damage 52941 | . . . . . . . . . 33 290 253 1665 637 383 476 88 . 372 . 1801 1429 1652 185 2412 . 492 1818 821 . . . . 2071 . 61 292 20328 11890 843 2649 Kills 257 | . . . . . . . . . . 2 . 19 5 4 9 . . 3 . 18 13 7 . 16 . 2 18 3 . . . . 8 . . 1 65 48 2 14 Allies Corrupted 9 | . . . . . . . . . . . . . . . 1 . . . . . . . . 2 . . 1 1 . . . . 1 . . 1 2 . . . Allies Melted . | . . . . . . . . . . . . . . . . . . . . . . . . . . . . . . . . . . . . . . . . . Intel | -11 -10 -10 -9 -9 -9 -8 -8 -8 -8 -7 -7 -7 -7 -7 -7 -7 -6 -6 -6 -6 -6 -6 -6 -6 -5 -5 -5 -5 -5 -5 -4 -4 -4 -4 -3 -3 -3 -2 -2 -1 ------- Run | Scr Mat Min Mat Min Exi Min Mat Gar Mat Fac Was Fac Low Low Zio Dee Pro Fac Was Fac Ext Cet Arc Hub Fac Was Fac Gar Fac Gar Fac Was Fac Gar Res Qua Sec Res Tes Acc Robot Analysis Total 10 | . 2 . 1 . . . . . . . . 1 . . . . . . . . . . . 1 . . 1 . . . . . 2 . . . 2 . . . Derelict Logs Recovered 7 | . . 1 . 1 . . . . . . . . . 2 1 . 2 . . . . . . . . . . . . . . . . . . . . . . . Drone Launches 2 | . . . . . . . . . . . . . . . . . . . . . . . . . . . . . . . . . . . . . . 2 . . Drone Recoveries 1 | . . . . . . . . . . . . . . . . . . . . . . . . . . . . . . . . . . . . . . 1 . . Exploration | -11 -10 -10 -9 -9 -9 -8 -8 -8 -8 -7 -7 -7 -7 -7 -7 -7 -6 -6 -6 -6 -6 -6 -6 -6 -5 -5 -5 -5 -5 -5 -4 -4 -4 -4 -3 -3 -3 -2 -2 -1 ------------- Run | Scr Mat Min Mat Min Exi Min Mat Gar Mat Fac Was Fac Low Low Zio Dee Pro Fac Was Fac Ext Cet Arc Hub Fac Was Fac Gar Fac Gar Fac Was Fac Gar Res Qua Sec Res Tes Acc Turns Passed 47341 | 85 1535 740 1264 513 1802 617 551 1466 876 256 607 1707 1287 782 2457 3162 1420 1503 880 1559 902 363 385 1045 536 398 611 674 1074 519 999 304 1079 682 1315 2899 3153 1667 3002 665 Spaces Moved 28301 | 40 1035 513 626 390 1286 468 377 834 555 182 428 978 914 605 1555 1306 967 827 444 699 510 188 157 617 387 276 363 452 616 326 582 249 753 393 747 2039 1916 1072 1415 214 Core 5 | 5 . . . . . . . . . . . . . . . . . . . . . . . . . . . . . . . . . . . . . . . . Treads 1 | . . . . . . . . . . . . . . . . . . . . . . . . . . . . . . . . . . . . . . 1 . . Legs 28295 | 35 1035 513 626 390 1286 468 377 834 555 182 428 978 914 605 1555 1306 967 827 444 699 510 188 157 617 387 276 363 452 616 326 582 249 753 393 747 2039 1916 1071 1415 214 Wheels . | . . . . . . . . . . . . . . . . . . . . . . . . . . . . . . . . . . . . . . . . . Hover . | . . . . . . . . . . . . . . . . . . . . . . . . . . . . . . . . . . . . . . . . . Flight . | . . . . . . . . . . . . . . . . . . . . . . . . . . . . . . . . . . . . . . . . . Fastest Speed 50 | 50 120 120 120 120 120 120 120 120 120 120 123 123 123 123 123 116 132 132 132 132 132 132 132 115 115 115 115 115 115 115 115 115 115 115 115 115 115 115 115 125 Average Speed 124 | 111 120 120 120 120 120 120 120 147 120 121 123 123 123 123 123 121 132 132 132 132 132 132 132 125 115 115 115 115 115 115 115 115 117 115 115 115 115 122 170 131 Slowest Speed 250 | 120 120 120 120 120 120 120 120 190 120 123 123 123 123 123 123 132 132 132 132 132 132 132 132 132 115 115 120 115 115 115 115 115 186 172 115 115 186 250 225 170 Overloaded Moves . | . . . . . . . . . . . . . . . . . . . . . . . . . . . . . . . . . . . . . . . . . Propulsion Burnouts . | . . . . . . . . . . . . . . . . . . . . . . . . . . . . . . . . . . . . . . . . . Robots Hopped 2 | . . . . . . . . . . . . . . . . . . . . . . . . . . . . . . . . . . . . . . . . 2 Cave-ins Triggered . | . . . . . . . . . . . . . . . . . . . . . . . . . . . . . . . . . . . . . . . . . Teleports 1 | . . . . . . . . . . . . . . . . . . . . . . . . . . . . . . . . . . . . . . . 1 . Exploration Rate (%) 61 | 6 95 97 52 95 90 94 35 96 56 7 97 32 92 80 79 82 97 27 95 20 74 68 85 59 16 89 13 57 28 49 24 92 25 51 22 99 78 53 95 11 Regions Visited 40 Branch Regions 16 Pre-discovered Areas 4 | . 1 . . . 1 . 1 . 1 . . . . . . . . . . . . . . . . . . . . . . . . . . . . . . . Known Exits Taken 22 | . 1 . . . . . 1 . 1 . . 1 1 1 1 1 1 . . 1 1 1 1 1 . . 1 . 1 . . . 1 . 1 1 1 1 1 . Unknown Exits Taken 6 | 1 . 1 1 1 1 1 . . . . . . . . . . . . . . . . . . . . . . . . . . . . . . . . . . Scrap Searched 23 | . . 1 . 2 . 3 . . . . . . 8 3 3 . 3 . . . . . . . . . . . . . . . . . . . . . . . Spaces Dug 201 | . 16 . 5 . . . . 4 . . . 28 . . 3 . . 37 . 1 2 . . 10 1 1 . . 16 2 20 . 26 1 5 7 8 8 . . Terrain Destroyed 4034 | . 261 78 59 . 10 24 13 130 74 2 11 73 76 . 85 97 110 246 10 249 18 4 9 543 59 16 23 8 152 78 154 . 38 26 35 14 29 358 540 322 Melee 32 | . . . 5 . . . . . . . . 1 . . 3 . . . . . . . . . . . . . . . 6 . 3 1 5 7 1 . . . Projectile 917 | . . . . . 10 18 13 37 38 2 11 3 2 . 3 4 16 33 10 26 18 4 8 51 11 16 23 8 55 10 1 . 6 4 2 5 28 109 214 118 AOE 3062 | . 261 78 54 . . 6 . 88 34 . . 68 72 . 79 92 94 213 . 221 . . . 490 48 . . . 96 68 145 . 29 21 26 . . 249 326 204 Terrain Rammed . | . . . . . . . . . . . . . . . . . . . . . . . . . . . . . . . . . . . . . . . . . Walls Destroyed . | . . . . . . . . . . . . . . . . . . . . . . . . . . . . . . . . . . . . . . . . . Machines Disabled . | . . . . . . . . . . . . . . . . . . . . . . . . . . . . . . . . . . . . . . . . . Actions | -11 -10 -10 -9 -9 -9 -8 -8 -8 -8 -7 -7 -7 -7 -7 -7 -7 -6 -6 -6 -6 -6 -6 -6 -6 -5 -5 -5 -5 -5 -5 -4 -4 -4 -4 -3 -3 -3 -2 -2 -1 --------- Run | Scr Mat Min Mat Min Exi Min Mat Gar Mat Fac Was Fac Low Low Zio Dee Pro Fac Was Fac Ext Cet Arc Hub Fac Was Fac Gar Fac Gar Fac Was Fac Gar Res Qua Sec Res Tes Acc Total 37090 | 72 1201 581 978 410 1458 496 443 976 696 213 490 1391 1050 642 1911 2510 1058 1056 711 1181 668 277 310 821 455 319 524 550 854 431 827 255 897 557 1111 2496 2600 1320 1840 454 Wait 3449 | 24 15 14 181 . 15 . . 3 11 21 2 325 65 32 115 742 4 35 195 318 12 21 99 89 29 8 110 30 50 18 54 1 54 68 232 237 170 1 42 7 Move 28259 | 39 1034 512 625 389 1285 467 376 832 554 182 427 977 913 604 1554 1305 966 827 443 698 509 187 156 616 387 275 362 450 615 325 582 248 753 391 746 2038 1915 1071 1414 210 Hop 2 | . . . . . . . . . . . . . . . . . . . . . . . . . . . . . . . . . . . . . . . . 2 Pick Up 175 | 1 7 4 10 . 17 . 2 2 8 1 6 2 4 1 3 20 4 6 5 3 3 2 4 2 2 . 2 . 2 5 3 . . 1 1 9 16 4 7 6 Fast Attach 285 | 5 9 . 9 . 20 3 3 5 2 2 7 4 2 . 10 18 . 3 3 5 2 4 1 9 2 . 8 4 14 6 . . 5 3 2 12 38 32 31 2 Attach 100 | . . 1 3 . . . 4 1 6 2 4 1 2 . 1 8 1 4 . 5 5 1 1 4 2 . . . 2 1 1 . . . 1 8 11 4 10 6 Detach 142 | . 1 . 3 . 3 . 3 3 4 1 2 3 1 . 4 17 2 3 3 7 10 5 1 8 2 . 2 2 3 2 . . 1 . . 8 10 7 15 6 Swap 238 | . 14 7 5 . 3 . 1 . 7 . 5 8 3 2 6 15 6 11 2 6 2 2 . 5 1 1 1 1 12 10 16 . 5 7 16 3 13 7 12 23 Drop 356 | . 10 3 10 . 36 2 5 5 8 2 12 3 2 1 13 44 4 5 8 5 3 3 5 4 2 . 3 2 11 10 2 . 1 2 2 19 36 33 33 7 Fire 2251 | 3 71 32 51 10 63 24 35 78 53 2 12 51 28 . 175 106 30 92 18 88 34 18 37 41 24 24 21 34 61 33 100 . 29 41 65 93 202 95 148 129 Melee 403 | . 2 . 31 8 1 . . . 1 . 2 1 . . 7 133 . 9 . . 6 . . . . . . . 4 . 12 6 12 26 32 29 68 11 2 . Ram . | . . . . . . . . . . . . . . . . . . . . . . . . . . . . . . . . . . . . . . . . . Kick 56 | . 4 2 . . . . 3 . 2 . . 6 1 . . . . 16 . 2 1 . . 4 . . . . 12 . . . 1 . 2 . . . . . Crush . | . . . . . . . . . . . . . . . . . . . . . . . . . . . . . . . . . . . . . . . . . Escape Stasis 96 | . . . . . . . . 10 . . . . . . . . . . . . . . . . . . . 3 . 1 . . . 4 . . 39 . 26 13 Rewire 60 | . . . . . . . . . 1 . . . 23 . . . 2 . . . 31 . . . . . . . . . . . . . . . . . 3 . Trap 1 | . . 1 . . . . . . . . . . . . . . . . . . . . . . . . . . . . . . . . . . . . . . Miscellaneous 1217 | . 34 5 50 3 15 . 11 37 39 . 11 10 6 2 23 102 39 45 34 44 50 34 6 39 4 11 15 24 68 20 57 . 36 14 12 40 82 55 97 43 Route ------- -11/Scrapyard -10/Materials (discovered 4 exits: *Mat x3 / *Min) -10/Mines (discovered 2 exits: *Mat x2) -9/Materials (discovered 3 exits: *Mat / *Min / [*Sto]) -9/Mines (discovered 3 exits: *Mat x2 / *Exi) -9/Exiles (discovered 2 exits: [*Min x2]) -8/Mines (discovered 2 exits: *Mat x2) -8/Materials (discovered 3 exits: *Fac x2 / Gar) -8/Garrison (discovered 3 exits: *Mat x3) -8/Materials -7/Factory -7/Waste -7/Factory (discovered 3 exits: *Fac / *Low x2) -7/Lower Caves -7/Lower Caves -7/Zion -7/Deep Caves -6/Proximity Caves -6/Factory (discovered 4 exits: Low x2 / Ext x2) -6/Waste -6/Factory (discovered 3 exits: *Low / *Ext x2) -6/Extension (discovered 2 exits: *Fac / *Cet) -6/Cetus (discovered 2 exits: *Fac / *Arc) -6/Archives (discovered 3 exits: *Fac / *Hub x2) -6/Hub_04(d) (discovered 4 exits: *Fac x4) -5/Factory (discovered 2 exits: Upp x2) -5/Waste -5/Factory -5/Garrison (discovered 2 exits: *Fac x2) -5/Factory (discovered 4 exits: *Fac / Upp x2 / Gar) -5/Garrison -4/Factory -4/Waste -4/Factory (discovered 4 exits: *Res / Upp x2 / Gar) -4/Garrison -3/Research (discovered 4 exits: *Res / Arm / *Qua x2) -3/Quarantine (discovered 2 exits: *Res / *Sec) -3/Section 7 -2/Research (discovered 2 exits: *Acc / *Tes) -2/Testing -1/Access (discovered 1 exit: Com) History --------- Turn | Location | Event 1 | -11/Scrapyard | Upgraded with Propulsion slot (x1) 1 | -11/Scrapyard | Upgraded with Weapon slot (x1) 1 | -11/Scrapyard | Upgraded with Utility slot (x1) 56 | -11/Scrapyard | Discovered new exit (range 15) 86 | -11/Scrapyard | Entered Materials 292 | -10/Materials | Discovered new exit (range 16) 296 | -10/Materials | Identified exit to Mines 296 | -10/Materials | Central database locked down 326 | -10/Materials | Build established: Mutant 433 | -10/Materials | Discovered new exit (range 6) 645 | -10/Materials | Reached level 2 647 | -10/Materials | Upgraded with Weapon slot (x1) 1117 | -10/Materials | Discovered new exit (range 10) 1167 | -10/Materials | Reached level 3 1621 | -10/Materials | Entered Mines 1647 | -10/Mines | Reached level 4 1668 | -10/Mines | Upgraded with Utility slot (x1) 1728 | -10/Mines | Assembled infested the area 1733 | -10/Mines | Assisted by a Guerilla fighting off Assembled 1834 | -10/Mines | Found a hidden stash of uninstalled traps 1876 | -10/Mines | Discovered new exit (range 8) 1907 | -10/Mines | Destroyed 14 combat bots 1956 | -10/Mines | Learned Materials terminal intel 2108 | -10/Mines | Found a damaged Exp. Sensor Array with a note attached 2111 | -10/Mines | Found Prototype Device 2151 | -10/Mines | Build established: Gunner 2318 | -10/Mines | Discovered new exit (range 9) 2361 | -10/Mines | Entered Materials 2362 | -9/Materials | Loaded intel: 11 terminal locations 2363 | -9/Materials | Reached level 5 2364 | -9/Materials | Upgraded with Propulsion slot (x1) 2364 | -9/Materials | Upgraded with Weapon slot (x1) 2485 | -9/Materials | Reached level 6 2682 | -9/Materials | Discovered new exit (range 18) 2835 | -9/Materials | Reached level 7 2862 | -9/Materials | Identified Exp. Sensor Array 2958 | -9/Materials | Discovered new exit (range 17) 3095 | -9/Materials | Build established: Hacker-Gunner 3161 | -9/Materials | First assault squad dispatched 3175 | -9/Materials | Reached level 8 3248 | -9/Materials | Destroyed 11 combat bots 3320 | -9/Materials | Upgraded with Power slot (x1) 3374 | -9/Materials | Reached level 9 3525 | -9/Materials | Discovered new exit (range 11) 3625 | -9/Materials | Entered Mines 3628 | -9/Mines | Build established: Tank 3695 | -9/Mines | Deemed a non-threat by the Exiles lab entrance 3799 | -9/Mines | Learned location of 1 exit from Materials 3865 | -9/Mines | Discovered new exit (range 5) 4083 | -9/Mines | Discovered new exit (range 10) 4133 | -9/Mines | Discovered new exit (range 5) 4138 | -9/Mines | Entered Exiles 4166 | -9/Exiles | Met 8R-AWN 4189 | -9/Exiles | Met EX-HEX 4226 | -9/Exiles | Met EX-BIN 4241 | -9/Exiles | Aligned with FarCom system 4242 | -9/Exiles | Given EX-Vault access code 4271 | -9/Exiles | Opened EX-Vault 4300 | -9/Exiles | Warned to stay clear of 0b10 Research branches 4330 | -9/Exiles | Met EX-DEC 4339 | -9/Exiles | Learned location of Zion (-7) 4374 | -9/Exiles | Discovered new exit (range 12) 4471 | -9/Exiles | Build established: Mutant 4504 | -9/Exiles | Found AWS/Thermal 4509 | -9/Exiles | Found AWS/Gauss 4733 | -9/Exiles | Found Modified TNC 5186 | -9/Exiles | Discovered new exit (range 17) 5336 | -9/Exiles | Attacked by the Exiles 5506 | -9/Exiles | Destroyed 8R-AWN 5512 | -9/Exiles | Found Prototype Ballistic Gun 5512 | -9/Exiles | Identified 8R-AWN's Boregun 5538 | -9/Exiles | Found Prototype Device 5538 | -9/Exiles | Identified AS-neutralizer No. 17b 5542 | -9/Exiles | Found Prototype Protection 5542 | -9/Exiles | Identified 8R-AWN's Armor/EX 5545 | -9/Exiles | Found Prototype Processor 5545 | -9/Exiles | Identified Exp. Targeting Computer 5574 | -9/Exiles | Found 8R-AWN's Boregun 5709 | -9/Exiles | Destroyed EX-DEC 5726 | -9/Exiles | Destroyed EX-BIN 5735 | -9/Exiles | Destroyed EX-HEX 5754 | -9/Exiles | Found Prototype Device 5754 | -9/Exiles | Identified System Purifier 5940 | -9/Exiles | Stole two prototypes: Modified TNC, AWS/Gauss 5940 | -9/Exiles | Entered Mines 5942 | -8/Mines | Reached level 10 5942 | -8/Mines | Upgraded with Utility slot (x1) 6238 | -8/Mines | Build established: Scavenger-Gunner 6268 | -8/Mines | Discovered new exit (range 5) 6531 | -8/Mines | Discovered new exit (range 10) 6557 | -8/Mines | Entered Materials 6558 | -8/Materials | Identified exit to Factory 6559 | -8/Materials | Reached level 11 6559 | -8/Materials | Upgraded with Utility slot (x1) 6588 | -8/Materials | Build established: Scavenger-Mutant 6618 | -8/Materials | Reached level 12 6873 | -8/Materials | Destroyed 7 combat bots 7009 | -8/Materials | Discovered exit to Factory (range 12) 7107 | -8/Materials | Identified exit to Garrison 7108 | -8/Materials | Entered Garrison 7114 | -8/Garrison | Installed Relay Interface Framework 7114 | -8/Garrison | Reached level 13 7114 | -8/Garrison | Upgraded with Utility slot (x1) 7194 | -8/Garrison | Triggered checkpoint 7362 | -8/Garrison | Triggered checkpoint 7362 | -8/Garrison | Triggered checkpoint 7414 | -8/Garrison | Triggered checkpoint 7482 | -8/Garrison | Triggered checkpoint 7505 | -8/Garrison | Build established: Scavenger-Gunner 7515 | -8/Garrison | Destroyed 7 combat bots 7563 | -8/Garrison | Garrison Relay disabled 7640 | -8/Garrison | Discovered new exit (range 11) 7806 | -8/Garrison | Triggered checkpoint 7839 | -8/Garrison | Garrison Relay disabled 7976 | -8/Garrison | Discovered new exit (range 9) 8048 | -8/Garrison | Triggered checkpoint 8117 | -8/Garrison | Discovered new exit (range 9) 8172 | -8/Garrison | Triggered checkpoint 8322 | -8/Garrison | Garrison Relay disabled 8322 | -8/Garrison | Reached level 14 8362 | -8/Garrison | Phase Generator disabled 8432 | -8/Garrison | Spotted B-75 Beast 8446 | -8/Garrison | Destroyed B-75 Beast 8468 | -8/Garrison | Garrison Relay disabled 8574 | -8/Garrison | Entered Materials 8715 | -8/Materials | Central database locked down 8819 | -8/Materials | Repaired Hvy. Assault Cannon? 8953 | -8/Materials | Discovered exit to Factory (range 10) 9374 | -8/Materials | First assault squad dispatched 9450 | -8/Materials | Entered Factory 9450 | -7/Factory | Accompanied by 1 ally 9452 | -7/Factory | Reached level 15 9455 | -7/Factory | Upgraded with Utility slot (x1) 9527 | -7/Factory | Fabricated Salvage Targeting Computer (x2) 9651 | -7/Factory | Fabricated P-60 Hacker? 9706 | -7/Factory | Sucked down chute 9706 | -7/Factory | Entered Waste 9707 | -7/Waste | Met a frightened Derelict 9715 | -7/Waste | 1 allies followed down the chute 9758 | -7/Waste | Spotted C-40 Crusher 9760 | -7/Waste | Destroyed C-40 Crusher 9762 | -7/Waste | Spotted C-40 Crusher 9768 | -7/Waste | Spotted C-40 Crusher 9769 | -7/Waste | Spotted C-40 Crusher 9774 | -7/Waste | Destroyed C-40 Crusher 9778 | -7/Waste | Destroyed C-40 Crusher 9785 | -7/Waste | Destroyed C-40 Crusher 9787 | -7/Waste | Destroyed C-40 Crusher 9811 | -7/Waste | Spotted C-40 Crusher 9834 | -7/Waste | Destroyed C-40 Crusher 9921 | -7/Waste | Discovered new exit (range 12) 10040 | -7/Waste | Warlord forces began an assault 10313 | -7/Waste | Entered Factory 10313 | -7/Factory | Accompanied by 16 allies 10338 | -7/Factory | Identified exit to Lower Caves 10425 | -7/Factory | Reached level 16 10721 | -7/Factory | Build established: Scavenger-Mutant 11132 | -7/Factory | Build established: Scavenger-Skirmisher 11148 | -7/Factory | Fabricated P-60 Hacker? 11212 | -7/Factory | P-60 Hacker assimilated allied N6-39U(m) 11244 | -7/Factory | Garrison activated, responded to threat 11248 | -7/Factory | Hacker 4e assimilated hostile W-25 Informer 11418 | -7/Factory | Discovered new exit (range 5) 11423 | -7/Factory | Identified exit to Factory 11449 | -7/Factory | Reached level 17 11608 | -7/Factory | Fabricated P-60 Hacker (x2) 11646 | -7/Factory | Hacker 4g assimilated hostile G-47 Trooper 11743 | -7/Factory | Fabricated P-60 Hacker (x2) 12020 | -7/Factory | Entered Lower Caves 12020 | -7/Lower Caves | Accompanied by 6 allies 12020 | -7/Lower Caves | Spotted 0T-YJE(f) 12021 | -7/Lower Caves | Encountered a Master Thief 12025 | -7/Lower Caves | 8R-AWN's Boregun stolen by Master Thief 12539 | -7/Lower Caves | Discovered new exit (range 11) 12551 | -7/Lower Caves | Identified exit to Lower Caves 13307 | -7/Lower Caves | Entered another Lower Caves area 13307 | -7/Lower Caves | Accompanied by 7 allies 13743 | -7/Lower Caves | Learned Factory garrison access intel 13963 | -7/Lower Caves | Discovered new exit (range 17) 14013 | -7/Lower Caves | Identified exit to Zion 14089 | -7/Lower Caves | Entered Zion 14089 | -7/Zion | Accompanied by 5 allies 14354 | -7/Zion | Found CR-A16's Pointy Stick 14487 | -7/Zion | RIF detected upon attempting to enter Zion 14487 | -7/Zion | Attacked by Zionites 14601 | -7/Zion | Spotted AQ-CWQ(B) 14602 | -7/Zion | Spotted TL-UPP(B) 14654 | -7/Zion | Destroyed AQ-CWQ(B) 14671 | -7/Zion | Destroyed TL-UPP(B) 15368 | -7/Zion | Discovered new exit (range 5) 15369 | -7/Zion | Saw the warning signs outside the Deep Caves entrance 15372 | -7/Zion | Identified exit to Deep Caves 15470 | -7/Zion | Build established: Scavenger-Mutant 15647 | -7/Zion | Extracted access codes from Imprinter's data core 15772 | -7/Zion | Build established: Scavenger-Skirmisher 16546 | -7/Zion | Entered Deep Caves 16546 | -7/Deep Caves | Accompanied by 2 allies 16728 | -7/Deep Caves | Found Prototype Protection 16728 | -7/Deep Caves | Identified Zio. Weapon Casing 17121 | -7/Deep Caves | Spotted as-63795 17148 | -7/Deep Caves | Spotted as-77279 17151 | -7/Deep Caves | Triggered Deep Caves wall 17151 | -7/Deep Caves | Spotted AS-25308 17151 | -7/Deep Caves | Spotted AS-60161 17158 | -7/Deep Caves | Exposed GOLEM chamber 17158 | -7/Deep Caves | Reached level 18 17205 | -7/Deep Caves | Destroyed 37 combat bots 17206 | -7/Deep Caves | Destroyed as-63795 17228 | -7/Deep Caves | Destroyed AS-60161 17293 | -7/Deep Caves | Core integrity fell below 50% 17294 | -7/Deep Caves | Destroyed 13 combat bots 17308 | -7/Deep Caves | Destroyed AS-25308 17369 | -7/Deep Caves | Destroyed 7 combat bots 17792 | -7/Deep Caves | Build established: Scavenger-Assassin 18044 | -7/Deep Caves | Discovered new exit (range 9) 18168 | -7/Deep Caves | Found GOLEM Unit 18192 | -7/Deep Caves | Upgraded with Propulsion slot (x1) 18597 | -7/Deep Caves | Destroyed as-77279 18959 | -7/Deep Caves | Spotted as-48633 19006 | -7/Deep Caves | Destroyed as-48633 19455 | -7/Deep Caves | Build established: Hacker-Golem 19671 | -7/Deep Caves | Identified exit to Proximity Caves 19693 | -7/Deep Caves | Found Surveybot 24 Chip 19708 | -7/Deep Caves | Entered Proximity Caves 19743 | -6/Proximity Caves | Attracted the attention of an 0b10 base 19860 | -6/Proximity Caves | Learned Armory stockpile data 19860 | -6/Proximity Caves | Learned Extension emergency access door positions 19860 | -6/Proximity Caves | Learned Extension trap positions 20230 | -6/Proximity Caves | Learned 4 Factory zone layouts 20410 | -6/Proximity Caves | Attracted the attention of an 0b10 checkpoint 20929 | -6/Proximity Caves | Reached level 19 20967 | -6/Proximity Caves | Learned Factory garrison access intel 21119 | -6/Proximity Caves | Discovered exit to Factory (range 6) 21128 | -6/Proximity Caves | Entered Factory 21129 | -6/Factory | Identified exit to Extension 21130 | -6/Factory | Loaded intel: 4 garrison access locations 21164 | -6/Factory | Identified exit to DSF 21186 | -6/Factory | Identified exit to Lower Caves 21549 | -6/Factory | Reached level 20 21602 | -6/Factory | Upgraded with Utility slot (x1) 21714 | -6/Factory | Garrison activated, responded to threat 22076 | -6/Factory | Spotted B-75 Beast 22109 | -6/Factory | Revealed the true nature of CR-A16's Pointy Stick 22112 | -6/Factory | Destroyed B-75 Beast 22113 | -6/Factory | Core integrity fell below 50% 22330 | -6/Factory | Fabricated P-60 Hacker? 22457 | -6/Factory | Build established: Scavenger-Golem 22528 | -6/Factory | First assault squad dispatched 22631 | -6/Factory | Sucked down chute 22631 | -6/Factory | Entered Waste 22644 | -6/Waste | Spotted C-40 Crusher 22657 | -6/Waste | Spotted C-40 Crusher 22675 | -6/Waste | Destroyed C-40 Crusher 22678 | -6/Waste | Destroyed C-40 Crusher 22693 | -6/Waste | Spotted C-40 Crusher 22700 | -6/Waste | Destroyed C-40 Crusher 22719 | -6/Waste | Spotted C-40 Crusher 22723 | -6/Waste | Spotted C-40 Crusher 22727 | -6/Waste | Destroyed C-40 Crusher 22732 | -6/Waste | Destroyed C-40 Crusher 22763 | -6/Waste | Spotted C-40 Crusher 22803 | -6/Waste | Destroyed C-40 Crusher 22906 | -6/Waste | Discovered new exit (range 18) 22933 | -6/Waste | Warlord forces began an assault 23507 | -6/Waste | Identified exit to Factory 23511 | -6/Waste | Entered Factory 23511 | -6/Factory | Accompanied by 18 allies 23512 | -6/Factory | Loaded intel: 4 garrison access locations 23559 | -6/Factory | Reached level 21 23599 | -6/Factory | Discovered exit to Lower Caves (range 3) 23660 | -6/Factory | Discovered exit to Extension (range 17) 23861 | -6/Factory | First assault squad dispatched 23896 | -6/Factory | Garrison activated, responded to threat 24061 | -6/Factory | Discovered exit to Extension (range 5) 24183 | -6/Factory | Build established: Hacker-Golem 24879 | -6/Factory | Reached level 22 24882 | -6/Factory | Cargo convoy interrupted 24902 | -6/Factory | High security lockdown imminent 24926 | -6/Factory | Destroyed 10 combat bots 24982 | -6/Factory | High security lockdown engaged 25070 | -6/Factory | Entered Extension 25070 | -6/Extension | Upgraded with Utility slot (x1) 25071 | -6/Extension | Loaded intel: 14 trap records 25130 | -6/Extension | Rescued a captive Derelict 25174 | -6/Extension | Rescued a captive Derelict 25177 | -6/Extension | Rescued a captive Derelict 25217 | -6/Extension | Rescued a captive Derelict 25225 | -6/Extension | Rescued a captive Derelict 25235 | -6/Extension | Rescued a captive Derelict 25238 | -6/Extension | Rescued a captive Derelict 25454 | -6/Extension | Rescued a captive Derelict 25459 | -6/Extension | Rescued a captive Derelict 25497 | -6/Extension | Spotted B-75 Beast 25510 | -6/Extension | Spotted B-75 Beast 25527 | -6/Extension | Destroyed B-75 Beast 25531 | -6/Extension | Destroyed B-75 Beast 25599 | -6/Extension | Rescued a captive Derelict 25648 | -6/Extension | Rescued a captive Derelict 25737 | -6/Extension | Rescued A7 25773 | -6/Extension | Energy Cycler disabled 25920 | -6/Extension | Disrupted transfer network 25956 | -6/Extension | Discovered new exit (range 10) 25958 | -6/Extension | Discovered new exit (range 6) 25964 | -6/Extension | Identified exit to Cetus 25972 | -6/Extension | Entered Cetus 25972 | -6/Cetus | Accompanied by 7 allies (A7) 25977 | -6/Cetus | Acquired a Cetus Manufacturing Module code from A7 25990 | -6/Cetus | Spotted Cetus Guard 25990 | -6/Cetus | Spotted Cetus Guard 25992 | -6/Cetus | Spotted Cetus Guard 25995 | -6/Cetus | Destroyed Cetus Guard 25995 | -6/Cetus | Spotted Cetus Guard 25999 | -6/Cetus | Destroyed Cetus Guard 25999 | -6/Cetus | Destroyed Cetus Guard 26009 | -6/Cetus | Destroyed Cetus Guard 26086 | -6/Cetus | Started Cetus Manufacturing Module 26109 | -6/Cetus | Escorted A7 to Cetus Mainframe 26111 | -6/Cetus | Manufactured an Enhanced Grunt 26136 | -6/Cetus | Manufactured an Enhanced Grunt 26138 | -6/Cetus | Discovered new exit (range 18) 26161 | -6/Cetus | Manufactured an Enhanced Grunt 26162 | -6/Cetus | Spotted Cetus Guard 26163 | -6/Cetus | Spotted Cetus Guard 26173 | -6/Cetus | Destroyed Cetus Guard 26174 | -6/Cetus | Spotted Cetus Guard 26174 | -6/Cetus | Allies destroyed Cetus Guard 26175 | -6/Cetus | Spotted Cetus Guard 26176 | -6/Cetus | Destroyed Cetus Guard 26181 | -6/Cetus | Destroyed Cetus Guard 26186 | -6/Cetus | Manufactured an Enhanced Grunt 26204 | -6/Cetus | Discovered new exit (range 17) 26211 | -6/Cetus | Manufactured an Enhanced Grunt 26214 | -6/Cetus | Met Revision 17 26328 | -6/Cetus | Identified exit to Archives 26335 | -6/Cetus | Entered Archives 26335 | -6/Archives | Accompanied by 9 allies (A7) 26340 | -6/Archives | Received a hacking code to weaken MAIN.C 26368 | -6/Archives | Reached level 23 26381 | -6/Archives | Discovered new exit (range 18) 26410 | -6/Archives | Discovered new exit (range 17) 26500 | -6/Archives | Discovered new exit (range 15) 26700 | -6/Archives | Build established: Commander-Mutant 26711 | -6/Archives | Identified exit to Hub_04(d) 26720 | -6/Archives | Entered Hub_04(d) 26720 | -6/Hub_04(d) | Accompanied by 8 allies 26792 | -6/Hub_04(d) | Discovered new exit (range 12) 26806 | -6/Hub_04(d) | Identified exit to Factory 26988 | -6/Hub_04(d) | Identified exit to Garrison 27036 | -6/Hub_04(d) | Discovered exit to Factory (range 4) 27135 | -6/Hub_04(d) | Build established: Hacker-Gunner 27142 | -6/Hub_04(d) | Discovered exit to Factory (range 7) 27177 | -6/Hub_04(d) | Network Hub disabled 27177 | -6/Hub_04(d) | Garrison activated, responded to threat 27180 | -6/Hub_04(d) | Network Hub disabled 27229 | -6/Hub_04(d) | Discovered exit to Factory (range 11) 27345 | -6/Hub_04(d) | Network Hub disabled 27367 | -6/Hub_04(d) | Spotted Lightning 27368 | -6/Hub_04(d) | Spotted Lightning 27371 | -6/Hub_04(d) | Destroyed Lightning 27387 | -6/Hub_04(d) | Spotted Lightning 27397 | -6/Hub_04(d) | Destroyed Lightning 27402 | -6/Hub_04(d) | Destroyed Lightning 27427 | -6/Hub_04(d) | Found Prototype Energy Cannon 27427 | -6/Hub_04(d) | Identified EMDS 27430 | -6/Hub_04(d) | Found Prototype Device 27430 | -6/Hub_04(d) | Identified Exp. Phase Shifter 27454 | -6/Hub_04(d) | Found Prototype Device 27454 | -6/Hub_04(d) | Identified Exp. EM Disruption Field 27709 | -6/Hub_04(d) | Build established: Scavenger-Skirmisher 27765 | -6/Hub_04(d) | Entered Factory 27766 | -5/Factory | Identified exit to Upper Caves 28049 | -5/Factory | Repaired Exp. EM Disruption Field? 28301 | -5/Factory | Sucked down chute 28301 | -5/Factory | Entered Waste 28312 | -5/Waste | Spotted C-40 Crusher 28314 | -5/Waste | Destroyed C-40 Crusher 28316 | -5/Waste | EMP discharged 28338 | -5/Waste | Spotted C-40 Crusher 28349 | -5/Waste | Spotted C-40 Crusher 28361 | -5/Waste | Spotted C-40 Crusher 28365 | -5/Waste | Destroyed C-40 Crusher 28389 | -5/Waste | Destroyed C-40 Crusher 28407 | -5/Waste | Spotted C-40 Crusher 28415 | -5/Waste | Destroyed C-40 Crusher 28416 | -5/Waste | EMP discharged 28508 | -5/Waste | Met Warlord forces unprepared to attack 28516 | -5/Waste | EMP discharged 28593 | -5/Waste | Allies destroyed C-40 Crusher 28593 | -5/Waste | Spotted C-40 Crusher 28596 | -5/Waste | Allies destroyed C-40 Crusher 28616 | -5/Waste | EMP discharged 28657 | -5/Waste | Discovered new exit (range 18) 28699 | -5/Waste | Entered Factory 28699 | -5/Factory | Accompanied by 18 allies 28755 | -5/Factory | Reached level 24 28848 | -5/Factory | Fabricated Adv. Signal Interpreter (x2) 28876 | -5/Factory | Build established: Scavenger-Tank 28985 | -5/Factory | P-70 Sage assimilated allied 1X-LB7(s) 29290 | -5/Factory | Identified exit to Garrison 29293 | -5/Factory | Garrison activated, responded to threat 29299 | -5/Factory | First assault squad dispatched 29310 | -5/Factory | Entered Garrison 29310 | -5/Garrison | Accompanied by 8 allies 29334 | -5/Garrison | Triggered checkpoint 29353 | -5/Garrison | Garrison Relay disabled 29434 | -5/Garrison | Triggered checkpoint 29435 | -5/Garrison | Triggered checkpoint 29464 | -5/Garrison | Triggered checkpoint 29469 | -5/Garrison | Destroyed 7 combat bots 29486 | -5/Garrison | Triggered checkpoint 29512 | -5/Garrison | Destroyed 7 combat bots 29615 | -5/Garrison | Discovered new exit (range 9) 29624 | -5/Garrison | Identified exit to Factory 29704 | -5/Garrison | Triggered checkpoint 29715 | -5/Garrison | Reached level 25 29737 | -5/Garrison | Garrison Relay disabled 29774 | -5/Garrison | Discovered exit to Factory (range 11) 29794 | -5/Garrison | Expanded RIF knowledge: Threat Obfuscation 29984 | -5/Garrison | Entered Factory 29984 | -5/Factory | Accompanied by 1 ally 30109 | -5/Factory | Spotted B-75 Beast 30121 | -5/Factory | Destroyed B-75 Beast 30450 | -5/Factory | Build established: Scavenger-Gunner 30584 | -5/Factory | First assault squad dispatched 30858 | -5/Factory | Discovered new exit (range 13) 30880 | -5/Factory | Identified exit to Factory 30908 | -5/Factory | Identified exit to Garrison 30924 | -5/Factory | Allied Derelicts ambushed cargo convoy from Garrison Access 30924 | -5/Factory | Cargo convoy interrupted 30952 | -5/Factory | Found Corrupted Prototype Launcher 30952 | -5/Factory | Identified Point Singularity Launcher 30953 | -5/Factory | System corruption reached 10% 30955 | -5/Factory | Found Corrupted Prototype Launcher 30955 | -5/Factory | Identified Ragnarok Missile Launcher 30960 | -5/Factory | Found Corrupted Prototype Device 30960 | -5/Factory | Identified Thermal Barrier 30961 | -5/Factory | System corruption reached 30% 30963 | -5/Factory | Found Corrupted Prototype Processor 30963 | -5/Factory | Identified Exp. Signal Interpreter 30972 | -5/Factory | Found Corrupted Prototype Processor 30972 | -5/Factory | Identified Exp. Terrain Scan Processor 31058 | -5/Factory | Entered Garrison 31066 | -5/Garrison | Expanded RIF knowledge: Robot Detection 31090 | -5/Garrison | Triggered checkpoint 31172 | -5/Garrison | Destroyed 8 combat bots 31236 | -5/Garrison | Triggered checkpoint 31287 | -5/Garrison | Garrison Relay disabled 31400 | -5/Garrison | Triggered checkpoint 31432 | -5/Garrison | Triggered checkpoint 31467 | -5/Garrison | Destroyed 8 combat bots 31561 | -5/Garrison | Discovered exit to Factory (range 14) 31577 | -5/Garrison | Entered Factory 31619 | -4/Factory | Discovered new exit (range 17) 31640 | -4/Factory | Identified exit to Research 31725 | -4/Factory | Reached level 26 31725 | -4/Factory | Upgraded with Utility slot (x1) 31729 | -4/Factory | Garrison activated, responded to threat 31784 | -4/Factory | Destroyed 10 combat bots 31902 | -4/Factory | Destroyed 8 combat bots 31974 | -4/Factory | Build established: Scavenger-Assassin 32077 | -4/Factory | First assault squad dispatched 32148 | -4/Factory | Identified exit to Garrison 32540 | -4/Factory | Destroyed 7 combat bots 32576 | -4/Factory | Sucked down chute 32576 | -4/Factory | Entered Waste 32577 | -4/Waste | Joined by Warlord forces that had cleared the area 32863 | -4/Waste | Discovered new exit (range 13) 32878 | -4/Waste | Identified exit to Factory 32880 | -4/Waste | Entered Factory 32880 | -4/Factory | Accompanied by 15 allies 32938 | -4/Factory | Reached level 27 33055 | -4/Factory | Identified exit to Upper Caves 33055 | -4/Factory | Central database locked down 33281 | -4/Factory | Repaired Enh. Biometal Leg 33681 | -4/Factory | Discovered exit to Research (range 5) 33959 | -4/Factory | Identified exit to Garrison 33959 | -4/Factory | Entered Garrison 33966 | -4/Garrison | Expanded RIF knowledge: Program Shield 34016 | -4/Garrison | Spotted B-86 Titan 34094 | -4/Garrison | Destroyed B-86 Titan 34120 | -4/Garrison | Triggered checkpoint 34248 | -4/Garrison | Build established: Scavenger-Mutant 34293 | -4/Garrison | Triggered checkpoint 34300 | -4/Garrison | Garrison Relay disabled 34349 | -4/Garrison | Triggered checkpoint 34368 | -4/Garrison | Discovered exit to Research (range 13) 34486 | -4/Garrison | Triggered checkpoint 34513 | -4/Garrison | Garrison Relay disabled 34641 | -4/Garrison | Entered Research 34643 | -3/Research | Reached level 28 34650 | -3/Research | Upgraded with Utility slot (x1) 34682 | -3/Research | Found Prototype Device 34682 | -3/Research | Identified Exp. Thermal Shield 34709 | -3/Research | Discovered new exit (range 36) 34776 | -3/Research | Identified exit to Research 34955 | -3/Research | Build established: Scavenger-Assassin 35234 | -3/Research | Identified exit to Armory 35234 | -3/Research | Identified exit to Quarantine 35245 | -3/Research | Destroyed 10 combat bots 35600 | -3/Research | Local machine network offline 35922 | -3/Research | First assault squad dispatched 35956 | -3/Research | Entered Quarantine 35958 | -3/Quarantine | Reached level 29 36130 | -3/Quarantine | Found Alien Slashing Weapon 36130 | -3/Quarantine | Identified Sigix Broadsword 36305 | -3/Quarantine | Found Hpw. Transdimensional Reconstructor 36385 | -3/Quarantine | Scanned by Researcher 36386 | -3/Quarantine | Garrison activated, responded to threat 36420 | -3/Quarantine | Build established: Scavenger-Gladiator 36456 | -3/Quarantine | First assault squad dispatched 36595 | -3/Quarantine | Cryocooling Duct disabled 36595 | -3/Quarantine | Cryocooling Duct disabled 36610 | -3/Quarantine | Ambient heat levels rising (+40) 36610 | -3/Quarantine | Non-combat units ordered to evacuate 36610 | -3/Quarantine | Combat units ordered to evacuate 36710 | -3/Quarantine | Quarantine Guard activated 36774 | -3/Quarantine | Found Alien Artifact 36822 | -3/Quarantine | Destroyed Quarantine Guard 37006 | -3/Quarantine | Spotted Quarantine Guard 37009 | -3/Quarantine | Destroyed Quarantine Guard 37084 | -3/Quarantine | Identified Core Reset Matrix 37139 | -3/Quarantine | Destroyed Quarantine Guard 37199 | -3/Quarantine | Spotted Quarantine Guard 37208 | -3/Quarantine | Destroyed Quarantine Guard 37220 | -3/Quarantine | Spotted Quarantine Guard 37261 | -3/Quarantine | Reached level 30 37261 | -3/Quarantine | Destroyed Quarantine Guard 37262 | -3/Quarantine | Spotted Quarantine Guard 37276 | -3/Quarantine | Destroyed Quarantine Guard 37346 | -3/Quarantine | Spotted Quarantine Guard 37357 | -3/Quarantine | Destroyed Quarantine Guard 37398 | -3/Quarantine | Spotted Quarantine Guard 37409 | -3/Quarantine | Destroyed Quarantine Guard 37490 | -3/Quarantine | Discovered exit to Research (range 8) 37490 | -3/Quarantine | Spotted Quarantine Guard 37507 | -3/Quarantine | Destroyed Quarantine Guard 37546 | -3/Quarantine | Spotted Quarantine Guard 37550 | -3/Quarantine | Destroyed Quarantine Guard 37577 | -3/Quarantine | Spotted Quarantine Guard 37582 | -3/Quarantine | Destroyed Quarantine Guard 37848 | -3/Quarantine | Found Alien Impact Weapon 37848 | -3/Quarantine | Identified Core Stripper 37919 | -3/Quarantine | Spotted Fortress 37929 | -3/Quarantine | Destroyed Fortress 37936 | -3/Quarantine | Found Exp. Force Field 37942 | -3/Quarantine | Found Vortex Chain Reactor 38243 | -3/Quarantine | Found Alien Artifact 38249 | -3/Quarantine | Identified Terrabomb 38249 | -3/Quarantine | Used Terrabomb 38278 | -3/Quarantine | Found Alien Artifact 38427 | -3/Quarantine | Identified Subatomic Replicator 38496 | -3/Quarantine | Met incapacitated Sigix Warrior 38496 | -3/Quarantine | Lockdown squad dispatched 38500 | -3/Quarantine | Acquired the access code to the Sigix quarantine chamber 38503 | -3/Quarantine | Unlocked Sigix quarantine chamber 38547 | -3/Quarantine | Spotted Lightning 38758 | -3/Quarantine | Upgraded with Power slot (x1) 38843 | -3/Quarantine | Discovered new exit (range 5) 38843 | -3/Quarantine | Spotted Quarantine Guard 38849 | -3/Quarantine | Destroyed Quarantine Guard 38853 | -3/Quarantine | Identified exit to Section 7 38855 | -3/Quarantine | Entered Section 7 39040 | -3/Section 7 | Discovered exit to Research (range 18) 39059 | -3/Section 7 | Build established: Generator-Gladiator 39126 | -3/Section 7 | Spotted B-86 Titan 39138 | -3/Section 7 | Destroyed B-86 Titan 39340 | -3/Section 7 | Spotted S7 Guard 39352 | -3/Section 7 | Destroyed S7 Guard 39638 | -3/Section 7 | Found Alien Artifact 39850 | -3/Section 7 | Found Alien Artifact 39850 | -3/Section 7 | Identified Microwarp Drive 39858 | -3/Section 7 | Identified Navigation Efficiency Matrix 39858 | -3/Section 7 | Used Core Reset Matrix 39862 | -3/Section 7 | Sensed 22 artifacts in vicinity 39967 | -3/Section 7 | Spotted Executioner 39967 | -3/Section 7 | Spotted Executioner 39980 | -3/Section 7 | Reached level 31 39980 | -3/Section 7 | Destroyed Executioner 39990 | -3/Section 7 | Destroyed Executioner 40175 | -3/Section 7 | Spotted Executioner 40178 | -3/Section 7 | Spotted Executioner 40183 | -3/Section 7 | Destroyed Executioner 40189 | -3/Section 7 | Destroyed Executioner 40239 | -3/Section 7 | Activated Sigix Exoskeleton 40239 | -3/Section 7 | Received instructions from Sigix Warrior 40250 | -3/Section 7 | Upgraded with Utility slot (x1) 40264 | -3/Section 7 | Found Corrupted Prototype Processor 40264 | -3/Section 7 | Identified Exp. Core Analyzer 40265 | -3/Section 7 | System corruption reached 10% 40278 | -3/Section 7 | Spotted Striker 40279 | -3/Section 7 | Spotted Striker 40283 | -3/Section 7 | Destroyed Striker 40288 | -3/Section 7 | Destroyed Striker 40355 | -3/Section 7 | Local machine network offline 40383 | -3/Section 7 | Found Sigix Sheargun 40398 | -3/Section 7 | Found Sigix Sheargun 40412 | -3/Section 7 | Spotted Executioner 40421 | -3/Section 7 | Destroyed Executioner 40431 | -3/Section 7 | Destroyed Executioner 40458 | -3/Section 7 | Destroyed 11 combat bots 40516 | -3/Section 7 | Spotted Investigator 40521 | -3/Section 7 | Destroyed Investigator 40634 | -3/Section 7 | Scanned by Researcher 40635 | -3/Section 7 | Intercept squad dispatched 40636 | -3/Section 7 | Destroyed Investigator 40655 | -3/Section 7 | Spotted Tracker 40673 | -3/Section 7 | Destroyed Tracker 40711 | -3/Section 7 | Spotted Combat Programmer 40714 | -3/Section 7 | Reached level 32 40723 | -3/Section 7 | Destroyed 17 combat bots 40822 | -3/Section 7 | Spotted Striker 40828 | -3/Section 7 | Destroyed Striker 40831 | -3/Section 7 | Spotted Investigator 40840 | -3/Section 7 | Sigix Exoskeleton integrity reduced to 80% 40842 | -3/Section 7 | Spotted Executioner 40842 | -3/Section 7 | Spotted Executioner 40844 | -3/Section 7 | Allies destroyed Investigator 40844 | -3/Section 7 | Destroyed Executioner 40849 | -3/Section 7 | Destroyed Executioner 40882 | -3/Section 7 | Destroyed 18 combat bots 40986 | -3/Section 7 | Spotted B-99 Colossus 40997 | -3/Section 7 | Destroyed B-99 Colossus 41004 | -3/Section 7 | Found Prototype Ballistic Gun 41004 | -3/Section 7 | Identified Multirail 41008 | -3/Section 7 | Found Multirail 41010 | -3/Section 7 | Spotted Striker 41012 | -3/Section 7 | Spotted Executioner 41017 | -3/Section 7 | Spotted Executioner 41024 | -3/Section 7 | Sigix Exoskeleton integrity reduced to 60% 41031 | -3/Section 7 | Spotted Executioner 41046 | -3/Section 7 | Sterilization system engaged 41046 | -3/Section 7 | Non-combat units ordered to evacuate 41046 | -3/Section 7 | Spotted Executioner 41053 | -3/Section 7 | Allies destroyed Executioner 41078 | -3/Section 7 | Sigix Exoskeleton integrity reduced to 40% 41098 | -3/Section 7 | Found Integrated Dissipator 41098 | -3/Section 7 | Installed Integrated Dissipator, increased core heat dissipation (+20) 41102 | -3/Section 7 | Found Integrated Dissipator 41102 | -3/Section 7 | Installed Integrated Dissipator, increased core heat dissipation (+20) 41105 | -3/Section 7 | Found Integrated Dissipator 41105 | -3/Section 7 | Installed Integrated Dissipator, increased core heat dissipation (+20) 41109 | -3/Section 7 | Destroyed 10 combat bots 41111 | -3/Section 7 | Destroyed Executioner 41113 | -3/Section 7 | Destroyed Executioner 41120 | -3/Section 7 | Destroyed Executioner 41141 | -3/Section 7 | Found Prototype Device 41141 | -3/Section 7 | Identified Adv. Kinecellerator 41146 | -3/Section 7 | Combat units ordered to evacuate 41218 | -3/Section 7 | Found Exp. Targeting Computer 41254 | -3/Section 7 | Found LRC Matter Compressor 41254 | -3/Section 7 | Installed LRC Matter Compressor, increased matter storage capacity (+125) 41262 | -3/Section 7 | Found LRC Storage 41262 | -3/Section 7 | Installed LRC Storage, increased inventory capacity (+2) 41264 | -3/Section 7 | Found LRC Energy Well 41264 | -3/Section 7 | Installed LRC Energy Well, increased energy storage capacity (+250) 41293 | -3/Section 7 | Found Prototype Device 41293 | -3/Section 7 | Identified Adv. Kinecellerator 41346 | -3/Section 7 | Ambient heat levels rising (+10) 41433 | -3/Section 7 | Found Spacefold Activator 41478 | -3/Section 7 | Found Integrated Mediator 41478 | -3/Section 7 | Installed Integrated Mediator, increased core attachment efficiency. 41496 | -3/Section 7 | Ambient heat levels rising (+10) 41521 | -3/Section 7 | Build established: Alien-Gladiator 41542 | -3/Section 7 | Spotted S7 Guard 41546 | -3/Section 7 | Allies destroyed S7 Guard 41566 | -3/Section 7 | Sigix Warrior authorized to use Shearcannon 41569 | -3/Section 7 | Upgraded with Weapon slot (x1) 41569 | -3/Section 7 | Found Sigix Sheargun 41577 | -3/Section 7 | Found Sigix Sheargun 41646 | -3/Section 7 | Ambient heat levels rising (+10) 41796 | -3/Section 7 | Ambient heat levels rising (+10) 41833 | -3/Section 7 | Build established: Alien-Gunner 41894 | -3/Section 7 | Discovered exit to Research (range 5) 41946 | -3/Section 7 | Ambient heat levels rising (+10) 42008 | -3/Section 7 | Entered Research 42008 | -2/Research | Accompanied by 1 ally (Sigix Warrior) 42046 | -2/Research | Reached level 33 42138 | -2/Research | Garrison activated, responded to threat 42144 | -2/Research | Destroyed Striker 42165 | -2/Research | Sigix Exoskeleton integrity reduced to 20% 42197 | -2/Research | Destroyed 24 combat bots 42233 | -2/Research | Destroyed Investigator 42234 | -2/Research | Reached level 34 42273 | -2/Research | Destroyed 15 combat bots 42321 | -2/Research | Spotted Striker 42322 | -2/Research | Destroyed Striker 42335 | -2/Research | Destroyed Executioner 42363 | -2/Research | Destroyed 14 combat bots 42364 | -2/Research | Spotted Striker 42372 | -2/Research | Destroyed Striker 42561 | -2/Research | Spotted Striker 42563 | -2/Research | Destroyed Striker 42565 | -2/Research | Sterilization system engaged 42565 | -2/Research | Non-combat units ordered to evacuate 42573 | -2/Research | Spotted Striker 42582 | -2/Research | Reached level 35 42582 | -2/Research | Destroyed Striker 42584 | -2/Research | Spotted Executioner 42590 | -2/Research | Local machine network offline 42590 | -2/Research | Destroyed Executioner 42652 | -2/Research | Destroyed 38 combat bots 42665 | -2/Research | Combat units ordered to evacuate 42675 | -2/Research | Found Prototype Device 42675 | -2/Research | Identified Adv. Kinecellerator 42707 | -2/Research | Upgraded with Utility slot (x1) 42859 | -2/Research | Spotted B-90 Cyclops 42865 | -2/Research | Ambient heat levels rising (+10) 42918 | -2/Research | Destroyed B-90 Cyclops 43015 | -2/Research | Ambient heat levels rising (+10) 43060 | -2/Research | Found Prototype Launcher 43060 | -2/Research | Identified Enh. Gamma Bomb Array 43073 | -2/Research | Found Unknown Device 43073 | -2/Research | Identified Adv. Force Booster 43165 | -2/Research | Ambient heat levels rising (+10) 43171 | -2/Research | Found Prototype Device 43171 | -2/Research | Identified Adv. EM Disruption Field 43177 | -2/Research | Discovered new exit (range 10) 43196 | -2/Research | Identified exit to Access 43271 | -2/Research | Build established: Alien-Assassin 43313 | -2/Research | Spotted B-90 Cyclops 43315 | -2/Research | Ambient heat levels rising (+10) 43319 | -2/Research | Destroyed B-90 Cyclops 43400 | -2/Research | Discovered new exit (range 7) 43406 | -2/Research | Identified exit to Testing 43465 | -2/Research | Ambient heat levels rising (+10) 43615 | -2/Research | Ambient heat levels rising (+10) 43675 | -2/Research | Entered Testing 43812 | -2/Testing | Found Prototype Protection 43812 | -2/Testing | Identified SHELL Armor 43887 | -2/Testing | High security lockdown imminent 43915 | -2/Testing | Spotted Striker 43915 | -2/Testing | Spotted Striker 43927 | -2/Testing | Spotted Alpha 7 43946 | -2/Testing | Destroyed Striker 43950 | -2/Testing | Destroyed Striker 43958 | -2/Testing | Destroyed Alpha 7 43967 | -2/Testing | High security lockdown engaged 44033 | -2/Testing | Destroyed 9 combat bots 44082 | -2/Testing | Found Prototype Processor 44082 | -2/Testing | Identified Exp. Target Analyzer 44100 | -2/Testing | Found Prototype Device 44100 | -2/Testing | Identified Exp. ECM Suite 44105 | -2/Testing | Found Unknown Device 44105 | -2/Testing | Identified Antimissile System 44135 | -2/Testing | Spotted Investigator 44143 | -2/Testing | Destroyed Investigator 44172 | -2/Testing | Destroyed 14 combat bots 44229 | -2/Testing | Found Prototype Device 44229 | -2/Testing | Identified AEGIS Remote Shield 44247 | -2/Testing | Spotted Striker 44256 | -2/Testing | Destroyed Striker 44267 | -2/Testing | Spotted Striker 44267 | -2/Testing | Spotted Striker 44277 | -2/Testing | System corruption reached 10% 44279 | -2/Testing | Destroyed Striker 44287 | -2/Testing | Destroyed Striker 44288 | -2/Testing | Build established: Alien-Gunner 44320 | -2/Testing | Destroyed 23 combat bots 44443 | -2/Testing | Intercept squad dispatched 44447 | -2/Testing | Spotted Tracker 44447 | -2/Testing | Spotted Tracker 44449 | -2/Testing | Destroyed Tracker 44449 | -2/Testing | Spotted Investigator 44450 | -2/Testing | Destroyed Tracker 44450 | -2/Testing | Destroyed Investigator 44450 | -2/Testing | Spotted Executioner 44454 | -2/Testing | Spotted Combat Programmer 44454 | -2/Testing | Spotted Combat Programmer 44457 | -2/Testing | Destroyed Executioner 44467 | -2/Testing | Destroyed Combat Programmer 44480 | -2/Testing | Destroyed Combat Programmer 44501 | -2/Testing | Destroyed 36 combat bots 44552 | -2/Testing | Discovered exit to Access (range 9) 44553 | -2/Testing | Local machine network offline 44560 | -2/Testing | Reached level 36 44586 | -2/Testing | Spotted PH-37N07N6BPM 44708 | -2/Testing | Spotted Executioner 44708 | -2/Testing | Spotted Striker 44708 | -2/Testing | Spotted Striker 44708 | -2/Testing | Spotted Striker 44712 | -2/Testing | Destroyed Striker 44712 | -2/Testing | Destroyed Executioner 44725 | -2/Testing | Spotted Striker 44726 | -2/Testing | Destroyed Striker 44729 | -2/Testing | Destroyed Executioner 44729 | -2/Testing | Spotted Striker 44729 | -2/Testing | Spotted Striker 44730 | -2/Testing | Sterilization system engaged 44730 | -2/Testing | Non-combat units ordered to evacuate 44737 | -2/Testing | Core integrity fell below 50% 44739 | -2/Testing | Destroyed Striker 44743 | -2/Testing | Destroyed Striker 44751 | -2/Testing | Destroyed Striker 44759 | -2/Testing | Core integrity fell below 20% 44762 | -2/Testing | Warped through subspace 44772 | -2/Testing | Destroyed 35 combat bots 44813 | -2/Testing | Destroyed Striker 44830 | -2/Testing | Combat units ordered to evacuate 45030 | -2/Testing | Ambient heat levels rising (+10) 45058 | -2/Testing | Found Prototype Energy Cannon 45058 | -2/Testing | Identified Potential Cannon 45180 | -2/Testing | Ambient heat levels rising (+10) 45182 | -2/Testing | Found Prototype Ballistic Cannon 45182 | -2/Testing | Identified Omega Cannon 45330 | -2/Testing | Ambient heat levels rising (+10) 45480 | -2/Testing | Ambient heat levels rising (+10) 45505 | -2/Testing | Rewired PH-37N07N6BPM 45630 | -2/Testing | Ambient heat levels rising (+10) 45708 | -2/Testing | Spotted 9H-Z89(L) 45708 | -2/Testing | Spotted TX-2BH(L) 45708 | -2/Testing | Spotted CR-Q85(L) 45720 | -2/Testing | Allies destroyed CR-Q85(L) 45724 | -2/Testing | Rewired 9H-Z89(L) 45725 | -2/Testing | Allies destroyed TX-2BH(L) 45780 | -2/Testing | Ambient heat levels rising (+10) 45930 | -2/Testing | Ambient heat levels rising (+10) 46080 | -2/Testing | Ambient heat levels rising (+10) 46191 | -2/Testing | Build established: Alien-Gladiator 46230 | -2/Testing | Ambient heat levels rising (+10) 46321 | -2/Testing | Found Prototype Leg 46321 | -2/Testing | Identified Myomer Exoskeleton 46380 | -2/Testing | Ambient heat levels rising (+10) 46397 | -2/Testing | Destroyed PH-37N07N6BPM 46530 | -2/Testing | Ambient heat levels rising (+10) 46677 | -2/Testing | Entered Access 46677 | -1/Access | Accompanied by 1 ally 46678 | -1/Access | Emitted hypermatrix ping 46678 | -1/Access | Core integrity fell below 50% 46683 | -1/Access | Assembled emerged from beneath the floor 46692 | -1/Access | Identified exit to Command 46712 | -1/Access | Garrison activated, responded to threat 46751 | -1/Access | High security lockdown imminent 46831 | -1/Access | High security lockdown engaged 46899 | -1/Access | Spotted Executioner 46906 | -1/Access | Destroyed Executioner 46922 | -1/Access | Reached level 37 46943 | -1/Access | Destroyed 10 combat bots 46943 | -1/Access | Garrison activated, responded to threat 47068 | -1/Access | Destroyed Investigator 47073 | -1/Access | Spotted Executioner 47073 | -1/Access | Spotted Executioner 47080 | -1/Access | Destroyed Executioner 47080 | -1/Access | Destroyed Executioner 47109 | -1/Access | Destroyed 42 combat bots 47109 | -1/Access | Destroyed Striker 47111 | -1/Access | Destroyed Striker 47112 | -1/Access | Spotted Striker 47113 | -1/Access | Destroyed Striker 47178 | -1/Access | Destroyed 21 combat bots 47232 | -1/Access | Assembled emerged from beneath the floor 47246 | -1/Access | Spotted Striker 47248 | -1/Access | Spotted Executioner 47265 | -1/Access | Used Subatomic Replicator to replicate Sigix Sheargun 47278 | -1/Access | Core integrity fell below 20% 47279 | -1/Access | Destroyed Striker 47286 | -1/Access | Destroyed Executioner 47307 | -1/Access | Destroyed 13 combat bots 47308 | -1/Access | Garrison activated, responded to threat 47317 | -1/Access | Spotted Striker 47318 | -1/Access | Spotted Executioner 47328 | -1/Access | Destroyed Striker 47338 | -1/Access | Destroyed Executioner 47342 | -1/Access | Destroyed by H-88 Terminator with KE Penetrator Last Messages --------------- 47334_ S-43 Plague destroyed. 47334_ Quantum Shear penetrates Executioner. 47334_ Executioner Prototype Device severed. 47334_ Quantum Shear penetrates Executioner. 47336_ G-73 Enforcer destroyed. 47336_ Quantum Shear penetrates Executioner. 47336_ Slug penetrates Wall. 47336_ Penetrated by Slug. 47336_ Slug penetrates Wall. 47338_ Quantum Shear penetrates Executioner. 47338_ Unknown Processor melted. 47338_ Executioner destroyed. 47339_ Slug penetrates Wall. 47340_ Quantum Shear penetrates Wall. 47340_ Unknown Processor fried. 47340_ H-88 Terminator destroyed. 47340_ Quantum Shear penetrates Wall. 47340_ Wave Collapse Detector explodes. 47340_ Quantum Shear penetrates Wall. 47342_ Slug penetrates Wall. Map ----- +----------------------------------------------------+ | ??????????????????????????????????? | | ??????????????????????????????????? | | ??????????????????????????????????? | | ??????????????????????????????????? | | ??????????????????????????????????? | | ??????????????????????????????????? | | ??????????????????????????????????? | | ????????????????????# ??????????? | | ???????????????????? = ???????* | | ???????????????????? = ??? | | ????? ?????????????? % | | ????? ?????????????? | | ????? ?????######??; | | ?????? ?### ###; | | ?????? ?# ;; % | | ?????? ## ;# % | | ??????? ; * | | ??????? # | | ??????? ; | | ???????? [= = # | | ???????? g %=== + #?? | | ????????# [ =[ ??#! # | | ???????## % !###*= =# | | ???????#=!=i!|%=%=[[[ ="% | | ???????# [!/#=%**[%#+###### #?? | | ???????# !@%### *==# ## ???? | | ???????# =!#???? " ## #???? | | ???????# #??????# !% ## #???? | | ?????? ; #??????# [=## ##### | | ????? # #??????# !!*## # | | ????# ## #??????# %=%# | | ????# ?# #??????# !!%+ [ | | ????#??######??????##"#!%*= % !!! | | ???????????????????# #%% *%%==*! | | ?????????????????? "### % % *=%%= | | ????????????????? #??#"" ==%![! | | ???????????????? ?? = [ !!## | | ??????????????? ??# %[ # | | ?????????????? ???# # ###? | | ????????????? ????# * # #???? | | ????????????# ?????#### ####+#???? | | ????????????" ?????????? ?? ???? | | ???????????????????????? ?? ???? | | ???????????????????????? ?? ???? | | ???????????????????????? ?? ???? | | ???????????????????????? ?? ???? | | ???????????????????????? ??? ???? | | ???????????????????????????? ??? | | ???????????????????????????? ??? | | ???????????????????????????? ???? | +----------------------------------------------------+ Best States ------------- Heat Dissipation 266 Energy Generation 99 Energy Capacity 2300 Matter Stores 625 Matter Capacity 625 Sight Range 18 Robot Scan Range 20 Terrain Scan Range 16 Terrain Scan Density 2010 Jamming Range 16 Armor Coverage 900 Resistance: KI 30 Resistance: TH 15 Resistance: EX 15 Resistance: EM 75 Resistance: I 15 Resistance: S 15 Resistance: P 15 Weapon Shielding 100 Weapon Cycling 25 Phase Shifting 20 Evasion (%) 82 Targeting Accuracy 24 Target Analysis 10 Core Analysis 8 Armor Integrity Analysis 40 Particle Charging 25 Salvage Targeting 4 Offensive Hacking 32 Defensive Hacking 17 Relay Coupler Types 1 Relay Coupler Value 50 Authchip Count 1 Trap Extractor Capacity 4 Item Schematics ----------------- Adv. Variable Charge Gun | -3/Section 7 | Archive Exp. Cooling System | -3/Section 7 | Archive Prc. Phase Gun | -3/Section 7 | Archive Plasma Sword | -3/Section 7 | Archive Adv. Remote Shield | -3/Section 7 | Archive Adv. KE Penetrator | -3/Section 7 | Archive Molecular Scythe | -3/Section 7 | Archive Exp. Thermal Shield | -2/Testing | Archive Neutron Missile Launcher | -2/Testing | Archive Adv. Gravity Neutralizer | -2/Testing | Archive Cld. Antimatter Reactor | -2/Testing | Archive Exp. Q-thruster | -2/Testing | Archive Med. Regenerative Plating | -2/Testing | Hacked Robot Schematics ------------------ G-73 Enforcer | -2/Testing | Archive E-15 Imp | -2/Testing | Archive Fabricated ------------ Salvage Targeting Computer | x2 | -7/Factory P-60 Hacker | x2 | -7/Factory P-60 Hacker | x2 | -7/Factory P-60 Hacker | x2 | -7/Factory | Authchip P-60 Hacker | x2 | -7/Factory P-60 Hacker | x2 | -6/Factory Adv. Signal Interpreter | x2 | -5/Factory Alien Tech Used ----------------- Sigix Broadsword Core Stripper Terrabomb Microwarp Drive Core Reset Matrix Sigix Sheargun Integrated Dissipator LRC Matter Compressor LRC Storage LRC Energy Well Integrated Mediator High-powered Transdimensional Reconstructor Subatomic Replicator Achievements -------------- Everyone Must Die Challenges ------------ None RPGLIKE | -11 -10 -10 -9 -9 -9 -8 -8 -8 -8 -7 -7 -7 -7 -7 -7 -7 -6 -6 -6 -6 -6 -6 -6 -6 -5 -5 -5 -5 -5 -5 -4 -4 -4 -4 -3 -3 -3 -2 -2 -1 --------- Run | Scr Mat Min Mat Min Exi Min Mat Gar Mat Fac Was Fac Low Low Zio Dee Pro Fac Was Fac Ext Cet Arc Hub Fac Was Fac Gar Fac Gar Fac Was Fac Gar Res Qua Sec Res Tes Acc Levels Raised 36 | . 2 1 5 . . 1 2 2 . 1 . 2 . . . 1 1 1 . 2 . . 1 . . . 1 1 . . 1 . 1 . 1 2 2 3 1 1 XP Earned 58448 | 3000 3858 1751 6631 952 169 1450 2880 1991 1087 1322 97 1988 593 266 118 355 1604 2772 46 1795 609 527 177 751 654 50 821 749 329 213 2220 54 584 453 1986 2055 3371 3965 1442 2713 XP Spent 56295 | 2500 3455 1120 7600 . . 1755 1400 3550 . 2600 . . 2000 . . 2220 . 2300 . . 3400 . 1955 . . . 1470 . . . 2900 . . . 3200 800 4900 4400 1720 1050 Upgrades 86 | 7 16 5 11 . . 4 1 3 . 2 . . 1 . . 9 . 1 . . 2 . 5 . . . 7 . . . 1 . . . 1 1 2 2 4 1 Power Slot 2 | . . . 1 . . . . . . . . . . . . . . . . . . . . . . . . . . . . . . . . 1 . . . . Propulsion Slot 3 | 1 . . 1 . . . . . . . . . . . . 1 . . . . . . . . . . . . . . . . . . . . . . . . Utility Slot 12 | 1 . 1 . . . 1 1 1 . 1 . . . . . . . 1 . . 1 . . . . . . . . . 1 . . . 1 . 1 1 . . Weapon Slot 4 | 1 1 . 1 . . . . . . . . . . . . . . . . . . . . . . . . . . . . . . . . . 1 . . . Core Integrity 20 | . 4 4 . . . . . . . . . . . . . 8 . . . . . . 2 . . . . . . . . . . . . . . . 2 . Heat Dissipation 12 | 1 3 . . . . 1 . . . . . . . . . . . . . . . . . . . . 7 . . . . . . . . . . . . . Energy Generation 4 | . 1 . . . . . . . . . . . . . . . . . . . . . 2 . . . . . . . . . . . . . . . . 1 Energy Storage 2 | . 1 . . . . . . . . . . . . . . . . . . . . . 1 . . . . . . . . . . . . . . . . . Matter Storage 4 | . 2 . . . . 2 . . . . . . . . . . . . . . . . . . . . . . . . . . . . . . . . . . Mass Support 2 | . . . . . . . . 1 . . . . . . . . . . . . . . . . . . . . . . . . . . . . . 1 . . Inventory Capacity 8 | 2 1 . 3 . . . . 1 . . . . 1 . . . . . . . . . . . . . . . . . . . . . . . . . . . Sight Range 2 | . 2 . . . . . . . . . . . . . . . . . . . . . . . . . . . . . . . . . . . . . . . Hack Attack % 4 | . . . 2 . . . . . . 1 . . . . . . . . . . 1 . . . . . . . . . . . . . . . . . . . Hack Defense % 1 | 1 . . . . . . . . . . . . . . . . . . . . . . . . . . . . . . . . . . . . . . . . KI Resistance % 4 | . 1 . 1 . . . . . . . . . . . . . . . . . . . . . . . . . . . . . . . . . . . 2 . TH Resistance % 2 | . . . 2 . . . . . . . . . . . . . . . . . . . . . . . . . . . . . . . . . . . . . Protomatter Created 17010 | . 274 32 644 20 7 . 121 254 357 . 498 267 99 . 165 1216 229 533 259 663 161 323 80 504 56 170 8 363 517 217 546 . 409 221 442 867 1006 1917 1831 1734 Integrity Restored 24856 | . 625 78 961 60 339 . 228 724 768 . 211 130 97 26 516 2286 821 1011 747 928 1116 710 80 789 63 247 295 418 1368 366 1230 . 694 223 164 652 1613 1134 2172 966 Core 18350 | . 457 78 706 60 339 . 228 495 262 . 33 58 60 . 516 1831 727 922 394 893 1070 176 36 433 63 188 55 223 918 223 1102 . 297 134 109 426 1265 655 1952 966 Parts 6506 | . 168 . 255 . . . . 229 506 . 178 72 37 26 . 455 94 89 353 35 46 534 44 356 . 59 240 195 450 143 128 . 397 89 55 226 348 479 220 . Protomatter Decayed 9580 | . 58 1 172 . 26 . 45 9 46 . 91 701 66 203 85 484 . 246 5 615 72 166 . 392 . . 265 390 98 57 77 171 201 141 293 786 767 1463 490 898 Game ------ Seed MetafieldTitaniumCutter Manual? 0 Play Time 08:03:56 Cumulative 295.9 hours Start 2022.05.23 @ 09:57:43 End 2022.05.23 @ 18:29:28 Sessions 3 Manual Loads 0 Difficulty Rogue Special Mode Winter2019/RPGLIKE Game No. 103 Rogue 88 Adventurer 15 Explorer 0 Win Type - Total 15 Types 4/0/6/1/2/0/2/0/0 Lore% 89 Gallery% 89 Achievement% 78 Wizard Run 0 Options --------- ASCII 0 Keyboard 0 Movement Numpad Keybinds 0 Fullscreen 1 Font 18/SmallcapsGlow Map View 76x50 Tactical HUD 1 Map Filters NONE Filters NONE Steam 1 RUN: b858deba-104c-4bbc-bd7e-67843ee32416